Publisher Label,Publisher URI,"Supplier ID","Supplier","Invoice No.","Amount £","Purpose","Transaction Number","Payment Date","Organisational Unit","Cost Centre(T)","Internal Category Number"
"Wolverhampton City Council","http://opendatacommunities.org/id/metropolitan-district-council/wolverhampton","703504","Enterprise Managed Services Limited","0090692145","2,670.20","Refuse Collection","130221114","25/07/2018","Leisure Services","Central Baths","R2704"
"Wolverhampton City Council","http://opendatacommunities.org/id/metropolitan-district-council/wolverhampton","703504","Enterprise Managed Services Limited","0090692133","294.32","TPP - Waste Disposal","130221103","25/07/2018","Local Economy","East Park Library (Prev Eastfield LP EA)","R5003"
"Wolverhampton City Council","http://opendatacommunities.org/id/metropolitan-district-council/wolverhampton","703504","Enterprise Managed Services Limited","0090692155","2,138.76","TPP - Waste Disposal","130221121","25/07/2018","Local Economy","Global Budgets","R5003"
"Wolverhampton City Council","http://opendatacommunities.org/id/metropolitan-district-council/wolverhampton","703504","Enterprise Managed Services Limited","90692309","534.04","TPP - Waste Disposal","130221147","25/07/2018","Specialist Support","Head of Service Specialist Intensive Support Service","R5003"
"Wolverhampton City Council","http://opendatacommunities.org/id/metropolitan-district-council/wolverhampton","703504","Enterprise Managed Services Limited","0090692140","469.56","TPP - Waste Disposal","130221110","25/07/2018","Early Years","Early Years & Universal Service","R5003"
"Wolverhampton City Council","http://opendatacommunities.org/id/metropolitan-district-council/wolverhampton","703504","Enterprise Managed Services Limited","90692045","226.98","TPP - Waste Disposal","130221133","25/07/2018","Early Intervention","EIP Locality 8 � Children�s Village","R5003"
"Wolverhampton City Council","http://opendatacommunities.org/id/metropolitan-district-council/wolverhampton","703504","Enterprise Managed Services Limited","0090692118","267.02","TPP - Waste Disposal","130221091","25/07/2018","Facilities Management","Low Hill Community Centre","R5003"
"Wolverhampton City Council","http://opendatacommunities.org/id/metropolitan-district-council/wolverhampton","703504","Enterprise Managed Services Limited","0090692119","234.78","TPP - Waste Disposal","130221092","25/07/2018","Facilities Management","Ashmore Park Community Centre","R5003"
"Wolverhampton City Council","http://opendatacommunities.org/id/metropolitan-district-council/wolverhampton","703504","Enterprise Managed Services Limited","0090692161","534.04","TPP - Waste Disposal","130221124","25/07/2018","Specialist Support","Upper Pendeford Farm Short Breaks Centre","R5003"
"Wolverhampton City Council","http://opendatacommunities.org/id/metropolitan-district-council/wolverhampton","703504","Enterprise Managed Services Limited","0090692135","1,068.08","TPP - Waste Disposal","130221105","25/07/2018","Visitor Economy","The Little Civic","R5003"
"Wolverhampton City Council","http://opendatacommunities.org/id/metropolitan-district-council/wolverhampton","703504","Enterprise Managed Services Limited","0090692164","255.32","TPP - Waste Disposal","130221125","25/07/2018","Visitor Economy","Makers Dozen","R5003"
"Wolverhampton City Council","http://opendatacommunities.org/id/metropolitan-district-council/wolverhampton","703504","Enterprise Managed Services Limited","0090692129","255.32","TPP - Waste Disposal","130221099","25/07/2018","Local Economy","Warstones Library","R5003"
"Wolverhampton City Council","http://opendatacommunities.org/id/metropolitan-district-council/wolverhampton","703504","Enterprise Managed Services Limited","0090692132","267.02","TPP - Waste Disposal","130221102","25/07/2018","Local Economy","Q","R5003"
"Wolverhampton City Council","http://opendatacommunities.org/id/metropolitan-district-council/wolverhampton","703504","Enterprise Managed Services Limited","0090692132","267.02","TPP - Waste Disposal","130221102","25/07/2018","Visitor Economy","Bilston Museum","R5003"
"Wolverhampton City Council","http://opendatacommunities.org/id/metropolitan-district-council/wolverhampton","703504","Enterprise Managed Services Limited","0090692141","469.56","Refuse Collection","130221111","25/07/2018","Environmental Maintenance","Parks - South West Area Management","R2704"
"Wolverhampton City Council","http://opendatacommunities.org/id/metropolitan-district-council/wolverhampton","703504","Enterprise Managed Services Limited","0090692141","1,068.08","Refuse Collection","130221111","25/07/2018","Environmental Maintenance","Parks - East Area Management","R2704"
"Wolverhampton City Council","http://opendatacommunities.org/id/metropolitan-district-council/wolverhampton","703504","Enterprise Managed Services Limited","90692211","1,656.72","TPP - Waste Disposal","130221145","25/07/2018","Visitor Economy","Bantock House Museum","R5003"
"Wolverhampton City Council","http://opendatacommunities.org/id/metropolitan-district-council/wolverhampton","703504","Enterprise Managed Services Limited","90692195","667.55","TPP - Waste Disposal","130221138","25/07/2018","Facilities Management","Magistrates","R5003"
"Wolverhampton City Council","http://opendatacommunities.org/id/metropolitan-district-council/wolverhampton","703504","Enterprise Managed Services Limited","0090692168","308.36","TPP - Waste Disposal","130221129","25/07/2018","Independent Living Service","Independent Living Service","R5003"
"Wolverhampton City Council","http://opendatacommunities.org/id/metropolitan-district-council/wolverhampton","703504","Enterprise Managed Services Limited","0090689371","368.94","Refuse Collection","130221466","18/07/2018","Visitor Economy","Art Gallery","R2704"
"Wolverhampton City Council","http://opendatacommunities.org/id/metropolitan-district-council/wolverhampton","703504","Enterprise Managed Services Limited","0090692158","534.04","TPP - Waste Disposal","130221122","25/07/2018","Adults Assessment & Care Management West","Adult Services � West","R5003"
"Wolverhampton City Council","http://opendatacommunities.org/id/metropolitan-district-council/wolverhampton","703504","Enterprise Managed Services Limited","0090692499","300.00","TPP - Waste Disposal","130221282","25/07/2018","Environmental Maintenance","Ground Maintenance East","R5003"
"Wolverhampton City Council","http://opendatacommunities.org/id/metropolitan-district-council/wolverhampton","703504","Enterprise Managed Services Limited","90692192","234.04","TPP - Waste Disposal","130221136","25/07/2018","Local Economy","Tettenhall Library","R5003"
"Wolverhampton City Council","http://opendatacommunities.org/id/metropolitan-district-council/wolverhampton","703504","Enterprise Managed Services Limited","0090692125","534.04","TPP - Waste Disposal","130221097","25/07/2018","Learning Disability Provider","Support Plus","R5003"
"Wolverhampton City Council","http://opendatacommunities.org/id/metropolitan-district-council/wolverhampton","703504","Enterprise Managed Services Limited","0090692134","255.32","TPP - Waste Disposal","130221104","25/07/2018","Local Economy","Whitmore Reans Library","R5003"
"Wolverhampton City Council","http://opendatacommunities.org/id/metropolitan-district-council/wolverhampton","703504","Enterprise Managed Services Limited","0090692169","394.16","TPP - Waste Disposal","130221130","25/07/2018","Visitor Economy","Archives","R5003"
"Wolverhampton City Council","http://opendatacommunities.org/id/metropolitan-district-council/wolverhampton","703504","Enterprise Managed Services Limited","0090692112","267.02","TPP - Waste Disposal","130221086","25/07/2018","Facilities Management","Lunt Community Centre","R5003"
"Wolverhampton City Council","http://opendatacommunities.org/id/metropolitan-district-council/wolverhampton","703504","Enterprise Managed Services Limited","0090692110","1,068.08","TPP - Waste Disposal","130221084","25/07/2018","Facilities Management","Dunstall Hill Community Centre","R5003"
"Wolverhampton City Council","http://opendatacommunities.org/id/metropolitan-district-council/wolverhampton","703504","Enterprise Managed Services Limited","0090692115","234.78","TPP - Waste Disposal","130221089","25/07/2018","Facilities Management","Bradmore Community Centre","R5003"
"Wolverhampton City Council","http://opendatacommunities.org/id/metropolitan-district-council/wolverhampton","703504","Enterprise Managed Services Limited","0090692116","147.16","TPP - Waste Disposal","130221090","25/07/2018","Facilities Management","Tettenhall Wood Community Centre","R5003"
"Wolverhampton City Council","http://opendatacommunities.org/id/metropolitan-district-council/wolverhampton","703504","Enterprise Managed Services Limited","0090692123","733.72","TPP - Waste Disposal","130221096","25/07/2018","Cleaning","Priory Green","R5003"
"Wolverhampton City Council","http://opendatacommunities.org/id/metropolitan-district-council/wolverhampton","703504","Enterprise Managed Services Limited","90692209","534.04","TPP - Waste Disposal","130221144","25/07/2018","Visitor Economy","Bantock - Tea Rooms","R5003"
"Wolverhampton City Council","http://opendatacommunities.org/id/metropolitan-district-council/wolverhampton","703504","Enterprise Managed Services Limited","90692201","1,335.10","TPP - Waste Disposal","130221140","25/07/2018","Facilities Management","Old Town Hall (Others)","R5003"
"Wolverhampton City Council","http://opendatacommunities.org/id/metropolitan-district-council/wolverhampton","703504","Enterprise Managed Services Limited","0090692138","469.56","TPP - Waste Disposal","130221108","25/07/2018","Child Protection","CIN/CP Social Work Unit - Area 7","R5003"
"Wolverhampton City Council","http://opendatacommunities.org/id/metropolitan-district-council/wolverhampton","703504","Enterprise Managed Services Limited","90692202","106.38","TPP - Waste Disposal","130221141","25/07/2018","Facilities Management","Old Town Hall (Others)","R5003"
"Wolverhampton City Council","http://opendatacommunities.org/id/metropolitan-district-council/wolverhampton","703504","Enterprise Managed Services Limited","90692193","667.55","TPP - Waste Disposal","130221137","25/07/2018","Estates and Valuations","Offices ; Bond House","R5003"
"Wolverhampton City Council","http://opendatacommunities.org/id/metropolitan-district-council/wolverhampton","703504","Enterprise Managed Services Limited","90688577","2,012.64","TPP - Waste Disposal","130223309","25/07/2018","Markets","Wolverhampton Indoor and Open Market","R5003"
"Wolverhampton City Council","http://opendatacommunities.org/id/metropolitan-district-council/wolverhampton","703504","Enterprise Managed Services Limited","90688579","375.00","TPP - Waste Disposal","130219710","11/07/2018","Facilities Management","Civic Centre","R5003"
"Wolverhampton City Council","http://opendatacommunities.org/id/metropolitan-district-council/wolverhampton","703504","Enterprise Managed Services Limited","90693223","4,891.28","TPP - Waste Disposal","130221283","27/07/2018","Waste and Recycling Service","Waste Collection and Recycling Service - General","R5003"
"Wolverhampton City Council","http://opendatacommunities.org/id/metropolitan-district-council/wolverhampton","703512","Environment Agency","EPR/CB3832A","2,529.00","Services - Fees and Charges","130222973","20/07/2018","Waste and Recycling Service","Waste Collection and Recycling Service - General","R4401"
"Wolverhampton City Council","http://opendatacommunities.org/id/metropolitan-district-council/wolverhampton","703512","Environment Agency","EAWML/42603","2,529.00","Services - Fees and Charges","130222974","20/07/2018","Waste and Recycling Service","Waste Collection and Recycling Service - General","R4401"
"Wolverhampton City Council","http://opendatacommunities.org/id/metropolitan-district-council/wolverhampton","703512","Environment Agency","EAWML/101082","2,529.00","Services - Fees and Charges","130222976","20/07/2018","Waste and Recycling Service","Waste Collection and Recycling Service - General","R4401"
"Wolverhampton City Council","http://opendatacommunities.org/id/metropolitan-district-council/wolverhampton","703512","Environment Agency","EAWML/46119","2,529.00","Services - Fees and Charges","130222975","20/07/2018","Waste and Recycling Service","Waste Collection and Recycling Service - General","R4401"
"Wolverhampton City Council","http://opendatacommunities.org/id/metropolitan-district-council/wolverhampton","703513","Environmental Husbandry","4045","9,725.85","Materials","130221636","11/07/2018","Environmental Maintenance","Ground Maintenance East","R4007"
"Wolverhampton City Council","http://opendatacommunities.org/id/metropolitan-district-council/wolverhampton","703523","Epos Group","INV053399","500.00","Equipment - Purchase","130221284","25/07/2018","Catering","Education Catering - General Overheads","R4000"
"Wolverhampton City Council","http://opendatacommunities.org/id/metropolitan-district-council/wolverhampton","703523","Epos Group","0000066971","259.00","Equipment - Purchase","130220245","11/07/2018","Leisure Services","Bert Williams Leisure Centre Caf�","R4000"
"Wolverhampton City Council","http://opendatacommunities.org/id/metropolitan-district-council/wolverhampton","703531","Ergo-Ike Limited","17.121","290.00","Equipment - Purchase","130218738","06/07/2018","Independent Living Service","Independent Living Service","R4000"
"Wolverhampton City Council","http://opendatacommunities.org/id/metropolitan-district-council/wolverhampton","703531","Ergo-Ike Limited","17.121","300.00","Equipment - Purchase","130218738","06/07/2018","Independent Living Service","Independent Living Service","R4000"
"Wolverhampton City Council","http://opendatacommunities.org/id/metropolitan-district-council/wolverhampton","703531","Ergo-Ike Limited","17.121","1,700.00","Equipment - Purchase","130218738","06/07/2018","Independent Living Service","Independent Living Service","R4000"
"Wolverhampton City Council","http://opendatacommunities.org/id/metropolitan-district-council/wolverhampton","703531","Ergo-Ike Limited","17.121","20.00","Equipment - Purchase","130218738","06/07/2018","Independent Living Service","Independent Living Service","R4000"
"Wolverhampton City Council","http://opendatacommunities.org/id/metropolitan-district-council/wolverhampton","703536","Esendex Limited","14658071","12.50","Comms - Mobile Telephones","130221586","06/07/2018","Public Service Reform","Electoral Registration","R4507"
"Wolverhampton City Council","http://opendatacommunities.org/id/metropolitan-district-council/wolverhampton","703555","Ethitec Technology Limited","ARMT/00002911","13,597.66","Computing - Licences","130220371","04/07/2018","Independent Living Service","Independent Living Service","R4535"
"Wolverhampton City Council","http://opendatacommunities.org/id/metropolitan-district-council/wolverhampton","703560","Euro Food Brands Limited","IN00769036","413.90","Provisions (Resale)","130220246","11/07/2018","Visitor Economy","Bantock - Tea Rooms","R4102"
"Wolverhampton City Council","http://opendatacommunities.org/id/metropolitan-district-council/wolverhampton","703560","Euro Food Brands Limited","IN00767887","200.05","Provisions (Resale)","130219712","11/07/2018","Visitor Economy","Art Gallery Tea Room","R4102"
"Wolverhampton City Council","http://opendatacommunities.org/id/metropolitan-district-council/wolverhampton","703560","Euro Food Brands Limited","IN00766903","200.05","Provisions (Resale)","130219110","04/07/2018","Visitor Economy","Bantock - Tea Rooms","R4102"
"Wolverhampton City Council","http://opendatacommunities.org/id/metropolitan-district-council/wolverhampton","703560","Euro Food Brands Limited","IN00772251","345.72","Provisions (Resale)","130221637","25/07/2018","Visitor Economy","Bantock - Tea Rooms","R4102"
"Wolverhampton City Council","http://opendatacommunities.org/id/metropolitan-district-council/wolverhampton","703566","Eurofins Food Testing UK Limited","IN-18-UD-200710","17.50","Materials","130222137","25/07/2018","Environmental Maintenance","Parks - Ranger Service","R4007"
"Wolverhampton City Council","http://opendatacommunities.org/id/metropolitan-district-council/wolverhampton","703566","Eurofins Food Testing UK Limited","IN-18-UD-198002","17.50","Materials","130222134","18/07/2018","Environmental Maintenance","Parks - Ranger Service","R4007"
"Wolverhampton City Council","http://opendatacommunities.org/id/metropolitan-district-council/wolverhampton","703566","Eurofins Food Testing UK Limited","IN-18-UD-200096","35.00","Materials","130222136","18/07/2018","Environmental Maintenance","Parks - Ranger Service","R4007"
"Wolverhampton City Council","http://opendatacommunities.org/id/metropolitan-district-council/wolverhampton","703566","Eurofins Food Testing UK Limited","IN-18-UD-199572","52.50","Materials","130222135","11/07/2018","Environmental Maintenance","Parks - Ranger Service","R4007"
"Wolverhampton City Council","http://opendatacommunities.org/id/metropolitan-district-council/wolverhampton","703576","Evans Halshaw Ford","937925","113.99","Services - Professional Fees","190490225","27/07/2018","Fleet Services","Fleet Management","R4400"
"Wolverhampton City Council","http://opendatacommunities.org/id/metropolitan-district-council/wolverhampton","703576","Evans Halshaw Ford","937925","227.98","Services - Professional Fees","190490225","27/07/2018","Fleet Services","Fleet Management","R4400"
"Wolverhampton City Council","http://opendatacommunities.org/id/metropolitan-district-council/wolverhampton","703576","Evans Halshaw Ford","948073","4.32","Equipment - Purchase","190490229","27/07/2018","Fleet Services","Fleet Management","R4000"
"Wolverhampton City Council","http://opendatacommunities.org/id/metropolitan-district-council/wolverhampton","703576","Evans Halshaw Ford","949204","152.95","Equipment - Purchase","190490233","27/07/2018","Fleet Services","Fleet Management","R4000"
"Wolverhampton City Council","http://opendatacommunities.org/id/metropolitan-district-council/wolverhampton","703576","Evans Halshaw Ford","944516","149.63","Equipment - Purchase","190481469","06/07/2018","Fleet Services","Fleet Management","R4000"
"Wolverhampton City Council","http://opendatacommunities.org/id/metropolitan-district-council/wolverhampton","703576","Evans Halshaw Ford","946091","41.77","Equipment - Purchase","190486279","23/07/2018","Fleet Services","Fleet Management","R4000"
"Wolverhampton City Council","http://opendatacommunities.org/id/metropolitan-district-council/wolverhampton","703576","Evans Halshaw Ford","945340","13.53","Equipment - Purchase","190488093","25/07/2018","Fleet Services","Fleet Management","R4000"
"Wolverhampton City Council","http://opendatacommunities.org/id/metropolitan-district-council/wolverhampton","703576","Evans Halshaw Ford","948278","21.38","Equipment - Purchase","190488096","25/07/2018","Fleet Services","Fleet Management","R4000"
"Wolverhampton City Council","http://opendatacommunities.org/id/metropolitan-district-council/wolverhampton","703576","Evans Halshaw Ford","946782","19.78","Equipment - Purchase","190488094","25/07/2018","Fleet Services","Fleet Management","R4000"
"Wolverhampton City Council","http://opendatacommunities.org/id/metropolitan-district-council/wolverhampton","703576","Evans Halshaw Ford","946782","57.64","Equipment - Purchase","190488094","25/07/2018","Fleet Services","Fleet Management","R4000"
"Wolverhampton City Council","http://opendatacommunities.org/id/metropolitan-district-council/wolverhampton","703576","Evans Halshaw Ford","946782","4.32","Equipment - Purchase","190488094","25/07/2018","Fleet Services","Fleet Management","R4000"
"Wolverhampton City Council","http://opendatacommunities.org/id/metropolitan-district-council/wolverhampton","703576","Evans Halshaw Ford","947089","18.41","Equipment - Purchase","190483193","11/07/2018","Fleet Services","Fleet Management","R4000"
"Wolverhampton City Council","http://opendatacommunities.org/id/metropolitan-district-council/wolverhampton","703576","Evans Halshaw Ford","948044","17.36","Equipment - Purchase","190490228","27/07/2018","Fleet Services","Fleet Management","R4000"
"Wolverhampton City Council","http://opendatacommunities.org/id/metropolitan-district-council/wolverhampton","703576","Evans Halshaw Ford","949739","134.72","Equipment - Purchase","190490234","27/07/2018","Fleet Services","Fleet Management","R4000"
"Wolverhampton City Council","http://opendatacommunities.org/id/metropolitan-district-council/wolverhampton","703576","Evans Halshaw Ford","949739","95.03","Equipment - Purchase","190490234","27/07/2018","Fleet Services","Fleet Management","R4000"
"Wolverhampton City Council","http://opendatacommunities.org/id/metropolitan-district-council/wolverhampton","703576","Evans Halshaw Ford","946005","143.93","Services - Professional Fees","190486278","23/07/2018","Fleet Services","Fleet Management","R4400"
"Wolverhampton City Council","http://opendatacommunities.org/id/metropolitan-district-council/wolverhampton","703576","Evans Halshaw Ford","948276","17.13","Equipment - Purchase","190488095","25/07/2018","Fleet Services","Fleet Management","R4000"
"Wolverhampton City Council","http://opendatacommunities.org/id/metropolitan-district-council/wolverhampton","703576","Evans Halshaw Ford","948276","57.90","Equipment - Purchase","190488095","25/07/2018","Fleet Services","Fleet Management","R4000"
"Wolverhampton City Council","http://opendatacommunities.org/id/metropolitan-district-council/wolverhampton","703576","Evans Halshaw Ford","948276","86.83","Equipment - Purchase","190488095","25/07/2018","Fleet Services","Fleet Management","R4000"
"Wolverhampton City Council","http://opendatacommunities.org/id/metropolitan-district-council/wolverhampton","703576","Evans Halshaw Ford","947793","23.70","Equipment - Purchase","190484331","13/07/2018","Fleet Services","Fleet Management","R4000"
"Wolverhampton City Council","http://opendatacommunities.org/id/metropolitan-district-council/wolverhampton","703576","Evans Halshaw Ford","947793","22.69","Equipment - Purchase","190484331","13/07/2018","Fleet Services","Fleet Management","R4000"
"Wolverhampton City Council","http://opendatacommunities.org/id/metropolitan-district-council/wolverhampton","703576","Evans Halshaw Ford","947793","35.21","Equipment - Purchase","190484331","13/07/2018","Fleet Services","Fleet Management","R4000"
"Wolverhampton City Council","http://opendatacommunities.org/id/metropolitan-district-council/wolverhampton","703576","Evans Halshaw Ford","947793","27.54","Equipment - Purchase","190484331","13/07/2018","Fleet Services","Fleet Management","R4000"
"Wolverhampton City Council","http://opendatacommunities.org/id/metropolitan-district-council/wolverhampton","703576","Evans Halshaw Ford","947793","23.48","Equipment - Purchase","190484331","13/07/2018","Fleet Services","Fleet Management","R4000"
"Wolverhampton City Council","http://opendatacommunities.org/id/metropolitan-district-council/wolverhampton","703576","Evans Halshaw Ford","945558","149.63","Equipment - Purchase","190480849","04/07/2018","Fleet Services","Fleet Management","R4000"
"Wolverhampton City Council","http://opendatacommunities.org/id/metropolitan-district-council/wolverhampton","703576","Evans Halshaw Ford","245613","4.12","Services - Professional Fees","190483166","11/07/2018","Fleet Services","Fleet Management","R4400"
"Wolverhampton City Council","http://opendatacommunities.org/id/metropolitan-district-council/wolverhampton","703576","Evans Halshaw Ford","245613","45.00","Services - Professional Fees","190483166","11/07/2018","Fleet Services","Fleet Management","R4400"
"Wolverhampton City Council","http://opendatacommunities.org/id/metropolitan-district-council/wolverhampton","703576","Evans Halshaw Ford","948042","57.64","Equipment - Purchase","190490227","27/07/2018","Fleet Services","Fleet Management","R4000"
"Wolverhampton City Council","http://opendatacommunities.org/id/metropolitan-district-council/wolverhampton","703576","Evans Halshaw Ford","948092","38.34","Equipment - Purchase","190490230","27/07/2018","Fleet Services","Fleet Management","R4000"
"Wolverhampton City Council","http://opendatacommunities.org/id/metropolitan-district-council/wolverhampton","703576","Evans Halshaw Ford","945539","55.30","Equipment - Purchase","190481470","06/07/2018","Fleet Services","Fleet Management","R4000"
"Wolverhampton City Council","http://opendatacommunities.org/id/metropolitan-district-council/wolverhampton","703576","Evans Halshaw Ford","946810","60.67","Equipment - Purchase","190486281","23/07/2018","Fleet Services","Fleet Management","R4000"
"Wolverhampton City Council","http://opendatacommunities.org/id/metropolitan-district-council/wolverhampton","703576","Evans Halshaw Ford","948339","42.57","Equipment - Purchase","190488097","25/07/2018","Fleet Services","Fleet Management","R4000"
"Wolverhampton City Council","http://opendatacommunities.org/id/metropolitan-district-council/wolverhampton","703576","Evans Halshaw Ford","947508","17.83","Equipment - Purchase","190484330","13/07/2018","Fleet Services","Fleet Management","R4000"
"Wolverhampton City Council","http://opendatacommunities.org/id/metropolitan-district-council/wolverhampton","703576","Evans Halshaw Ford","947508","20.09","Equipment - Purchase","190484330","13/07/2018","Fleet Services","Fleet Management","R4000"
"Wolverhampton City Council","http://opendatacommunities.org/id/metropolitan-district-council/wolverhampton","703576","Evans Halshaw Ford","944420","64.68","Equipment - Purchase","190481468","06/07/2018","Fleet Services","Fleet Management","R4000"
"Wolverhampton City Council","http://opendatacommunities.org/id/metropolitan-district-council/wolverhampton","703576","Evans Halshaw Ford","937931","-113.99","Equipment - Purchase","190490226","27/07/2018","Fleet Services","Fleet Management","R4000"
"Wolverhampton City Council","http://opendatacommunities.org/id/metropolitan-district-council/wolverhampton","703576","Evans Halshaw Ford","948190","111.22","Equipment - Purchase","190490231","27/07/2018","Fleet Services","Fleet Management","R4000"
"Wolverhampton City Council","http://opendatacommunities.org/id/metropolitan-district-council/wolverhampton","703576","Evans Halshaw Ford","949127","44.85","Equipment - Purchase","190490232","27/07/2018","Fleet Services","Fleet Management","R4000"
"Wolverhampton City Council","http://opendatacommunities.org/id/metropolitan-district-council/wolverhampton","703576","Evans Halshaw Ford","245828","112.50","Services - Professional Fees","190483167","11/07/2018","Fleet Services","Fleet Management","R4400"
"Wolverhampton City Council","http://opendatacommunities.org/id/metropolitan-district-council/wolverhampton","703576","Evans Halshaw Ford","245828","547.40","Services - Professional Fees","190483167","11/07/2018","Fleet Services","Fleet Management","R4400"
"Wolverhampton City Council","http://opendatacommunities.org/id/metropolitan-district-council/wolverhampton","703576","Evans Halshaw Ford","946502","2.52","Equipment - Purchase","190486280","23/07/2018","Fleet Services","Fleet Management","R4000"
"Wolverhampton City Council","http://opendatacommunities.org/id/metropolitan-district-council/wolverhampton","703576","Evans Halshaw Ford","946502","81.26","Equipment - Purchase","190486280","23/07/2018","Fleet Services","Fleet Management","R4000"
"Wolverhampton City Council","http://opendatacommunities.org/id/metropolitan-district-council/wolverhampton","703587","Excitech Limited","30993","345.00","Computing - Purchase of Software","130220505","18/07/2018","Transportation","Transportation General","R4531"
"Wolverhampton City Council","http://opendatacommunities.org/id/metropolitan-district-council/wolverhampton","703609","F.W. Bickford & Sons Limited","330743","1,785.00","Hire of Vehicles","190486267","23/07/2018","Fleet Services","Fleet Management","R3200"
"Wolverhampton City Council","http://opendatacommunities.org/id/metropolitan-district-council/wolverhampton","703617","Facultatieve Technologies Limited","18101859","397.86","R&M - Departmental planned (external)","130221638","11/07/2018","Bereavement Services","Crematorium","R2001"
"Wolverhampton City Council","http://opendatacommunities.org/id/metropolitan-district-council/wolverhampton","703627","Falon Nameplates Limited","2181233","91.50","Materials for resale","130221639","11/07/2018","Bereavement Services","Crematorium","R4008"
"Wolverhampton City Council","http://opendatacommunities.org/id/metropolitan-district-council/wolverhampton","703631","Family Links","2766","975.00","Training Expenses","130219215","11/07/2018","Looked After Children","Fostering Team & Allowances","R1650"
"Wolverhampton City Council","http://opendatacommunities.org/id/metropolitan-district-council/wolverhampton","703686","Firewalker (UK) Limited","NEF Summer 2018 INST 2","13,017.75","TPP - Private Nursery Education Funding","190489824","25/07/2018","Early Years","Early Years Universal Entitlement for 3 and 4 Year Olds","R5035"
"Wolverhampton City Council","http://opendatacommunities.org/id/metropolitan-district-council/wolverhampton","703686","Firewalker (UK) Limited","EYPP Summer 2018","1,144.80","TPP - Private Nursery Education Funding","190489844","25/07/2018","Early Years","Early Years Pupil Premium","R5035"
"Wolverhampton City Council","http://opendatacommunities.org/id/metropolitan-district-council/wolverhampton","703686","Firewalker (UK) Limited","11343","273.75","TPP - Child Care provided for client","130221769","11/07/2018","Adult Education","Discretionary Fund","R5034"
"Wolverhampton City Council","http://opendatacommunities.org/id/metropolitan-district-council/wolverhampton","703686","Firewalker (UK) Limited","TFT Summer 2018 Inst 2","3,222.60","TPP - Private Nursery Education Funding","190489836","25/07/2018","Early Years","Early Years Entitlement Funding for Disadvantaged 2 Year Olds","R5035"
"Wolverhampton City Council","http://opendatacommunities.org/id/metropolitan-district-council/wolverhampton","703698","First Response (First Aid) Limited","20832","195.00","Training Expenses","130221468","06/07/2018","Public Service Reform","Workforce Development","R1650"
"Wolverhampton City Council","http://opendatacommunities.org/id/metropolitan-district-council/wolverhampton","703698","First Response (First Aid) Limited","22412","160.00","Training Expenses","130220897","04/07/2018","Public Service Reform","Centralised Training","R1650"
"Wolverhampton City Council","http://opendatacommunities.org/id/metropolitan-district-council/wolverhampton","703698","First Response (First Aid) Limited","22533","100.00","Training Expenses","130223169","25/07/2018","Public Service Reform","Workforce Development","R1650"
"Wolverhampton City Council","http://opendatacommunities.org/id/metropolitan-district-council/wolverhampton","703698","First Response (First Aid) Limited","22492","300.00","Training Expenses","130222341","18/07/2018","Public Service Reform","Centralised Training","R1650"
"Wolverhampton City Council","http://opendatacommunities.org/id/metropolitan-district-council/wolverhampton","703698","First Response (First Aid) Limited","21944","60.00","Training Expenses","130221579","06/07/2018","Schools","The King�s Church of England School","R1650"
"Wolverhampton City Council","http://opendatacommunities.org/id/metropolitan-district-council/wolverhampton","703698","First Response (First Aid) Limited","22482","300.00","Training Expenses","130222138","18/07/2018","Public Service Reform","Centralised Training","R1650"
"Wolverhampton City Council","http://opendatacommunities.org/id/metropolitan-district-council/wolverhampton","703698","First Response (First Aid) Limited","22400","275.00","Training Expenses","130220759","11/07/2018","Public Service Reform","Centralised Training","R1650"
"Wolverhampton City Council","http://opendatacommunities.org/id/metropolitan-district-council/wolverhampton","703700","First Steps Childrens Nursery Limited","TFT Summer 2018 Inst 2","2,262.63","TPP - Private Nursery Education Funding","190489836","25/07/2018","Early Years","Early Years Entitlement Funding for Disadvantaged 2 Year Olds","R5035"
"Wolverhampton City Council","http://opendatacommunities.org/id/metropolitan-district-council/wolverhampton","703700","First Steps Childrens Nursery Limited","Enhanced Funding Summer 2018 Y Yalda","1,000.00","TPP - Private Nursery Education Funding","190482539","11/07/2018","Early Years","Early Years SEN Inclusion Fund","R5035"
"Wolverhampton City Council","http://opendatacommunities.org/id/metropolitan-district-council/wolverhampton","703700","First Steps Childrens Nursery Limited","NEF Summer 2018 INST 2","14,208.64","TPP - Private Nursery Education Funding","190489824","25/07/2018","Early Years","Early Years Universal Entitlement for 3 and 4 Year Olds","R5035"
"Wolverhampton City Council","http://opendatacommunities.org/id/metropolitan-district-council/wolverhampton","703743","Forensic Pathology Services","C9003","333.60","Services - Professional Fees","130222871","18/07/2018","Public Service Reform","Coroners Service","R4400"
"Wolverhampton City Council","http://opendatacommunities.org/id/metropolitan-district-council/wolverhampton","703743","Forensic Pathology Services","C8992","392.10","Services - Professional Fees","130222870","23/07/2018","Public Service Reform","Coroners Service","R4400"
"Wolverhampton City Council","http://opendatacommunities.org/id/metropolitan-district-council/wolverhampton","703745","Forensics Limited T/A Roar Forensics","0000030643","294.50","Services - Professional Fees","130223421","27/07/2018","Public Service Reform","Coroners Service","R4400"
"Wolverhampton City Council","http://opendatacommunities.org/id/metropolitan-district-council/wolverhampton","703745","Forensics Limited T/A Roar Forensics","0000030645","470.25","Services - Professional Fees","130223422","27/07/2018","Public Service Reform","Coroners Service","R4400"
"Wolverhampton City Council","http://opendatacommunities.org/id/metropolitan-district-council/wolverhampton","703745","Forensics Limited T/A Roar Forensics","0000030780","470.25","Services - Professional Fees","130223551","27/07/2018","Public Service Reform","Coroners Service","R4400"
"Wolverhampton City Council","http://opendatacommunities.org/id/metropolitan-district-council/wolverhampton","703745","Forensics Limited T/A Roar Forensics","0000030716","446.50","Services - Professional Fees","130223423","27/07/2018","Public Service Reform","Coroners Service","R4400"
"Wolverhampton City Council","http://opendatacommunities.org/id/metropolitan-district-council/wolverhampton","703759","Forward Products:Ex John Knight Educ","149652KC002","421.45","Equipment - Purchase","130221585","06/07/2018","Schools","The King�s Church of England School","R4000"
"Wolverhampton City Council","http://opendatacommunities.org/id/metropolitan-district-council/wolverhampton","703759","Forward Products:Ex John Knight Educ","148177KC002","80.22","Equipment - Purchase","130221580","06/07/2018","Schools","The King�s Church of England School","R4000"
"Wolverhampton City Council","http://opendatacommunities.org/id/metropolitan-district-council/wolverhampton","703759","Forward Products:Ex John Knight Educ","14817KC002","515.25","Equipment - Purchase","130221581","06/07/2018","Schools","The King�s Church of England School","R4000"
"Wolverhampton City Council","http://opendatacommunities.org/id/metropolitan-district-council/wolverhampton","703759","Forward Products:Ex John Knight Educ","148821KC002","98.10","Equipment - Purchase","130221582","06/07/2018","Schools","The King�s Church of England School","R4000"
"Wolverhampton City Council","http://opendatacommunities.org/id/metropolitan-district-council/wolverhampton","703759","Forward Products:Ex John Knight Educ","148822KC002","138.16","Equipment - Purchase","130221583","06/07/2018","Schools","The King�s Church of England School","R4000"
"Wolverhampton City Council","http://opendatacommunities.org/id/metropolitan-district-council/wolverhampton","703759","Forward Products:Ex John Knight Educ","148402KC002","54.84","Equipment - Purchase","130221584","06/07/2018","Schools","The King�s Church of England School","R4000"
"Wolverhampton City Council","http://opendatacommunities.org/id/metropolitan-district-council/wolverhampton","703823","Ft Leisure Limited","12741","257.68","R&M - Departmental planned (external)","130221285","06/07/2018","Maintenance Programme","Centralised R&M","R2001"
"Wolverhampton City Council","http://opendatacommunities.org/id/metropolitan-district-council/wolverhampton","703823","Ft Leisure Limited","12748","1,507.49","R&M - Departmental planned (external)","130221469","06/07/2018","Maintenance Programme","Centralised R&M","R2001"
"Wolverhampton City Council","http://opendatacommunities.org/id/metropolitan-district-council/wolverhampton","703849","Smirthwaite Ltd","160277","1,800.00","Equipment - Purchase","130223424","27/07/2018","Independent Living Service","Independent Living Service","R4000"
"Wolverhampton City Council","http://opendatacommunities.org/id/metropolitan-district-council/wolverhampton","703849","Smirthwaite Ltd","159072","1,800.00","Equipment - Purchase","130218895","06/07/2018","Independent Living Service","Independent Living Service","R4000"
"Wolverhampton City Council","http://opendatacommunities.org/id/metropolitan-district-council/wolverhampton","703868","G.C.Rickards (Investments) Limited","1242","7,500.00","Rent","130220054","18/07/2018","Highways Maintenance","Patching","R2200"
"Wolverhampton City Council","http://opendatacommunities.org/id/metropolitan-district-council/wolverhampton","703895","Gatenby Sanderson Limited","39086","3,374.40","Training Expenses","130221149","06/07/2018","Public Service Reform","Centralised Training","R1650"
"Wolverhampton City Council","http://opendatacommunities.org/id/metropolitan-district-council/wolverhampton","703895","Gatenby Sanderson Limited","39087","1,000.00","Training Expenses","130221150","06/07/2018","Public Service Reform","Centralised Training","R1650"
"Wolverhampton City Council","http://opendatacommunities.org/id/metropolitan-district-council/wolverhampton","703897","Gazebo Theatre-In-Education Co Limited","GZI4001","18,171.47","TPP - Payments to voluntary groups","130220636","25/07/2018","Headstart","Headstart - Commissioned Activity","R5200"
"Wolverhampton City Council","http://opendatacommunities.org/id/metropolitan-district-council/wolverhampton","703897","Gazebo Theatre-In-Education Co Limited","GZI4001","8,705.31","TPP - Payments to voluntary groups","130220636","25/07/2018","Headstart","Headstart - Commissioned Activity","R5200"
"Wolverhampton City Council","http://opendatacommunities.org/id/metropolitan-district-council/wolverhampton","703897","Gazebo Theatre-In-Education Co Limited","GZI4001","6,442.38","TPP - Payments to voluntary groups","130220636","25/07/2018","Headstart","Headstart - Commissioned Activity","R5200"
"Wolverhampton City Council","http://opendatacommunities.org/id/metropolitan-district-council/wolverhampton","703898","GB Group PLC","269004","118.53","Services - Professional Fees","130222139","25/07/2018","Human Resources","HR Advice","R4400"
"Wolverhampton City Council","http://opendatacommunities.org/id/metropolitan-district-council/wolverhampton","703903","Gemini Consultants Limited","16356","52.86","Services - Professional Fees","130223130","23/07/2018","Revenues & Benefits","Debt Management","R4400"
"Wolverhampton City Council","http://opendatacommunities.org/id/metropolitan-district-council/wolverhampton","703934","Geze UK Limited","88358874","667.20","Fixtures and Fittings - R&M","130220506","04/07/2018","Visitor Economy","Art Gallery","R2502"
"Wolverhampton City Council","http://opendatacommunities.org/id/metropolitan-district-council/wolverhampton","703934","Geze UK Limited","88359530","120.50","R&M - Departmental planned (external)","130218250","06/07/2018","Maintenance Programme","Centralised R&M","R2001"
"Wolverhampton City Council","http://opendatacommunities.org/id/metropolitan-district-council/wolverhampton","703955","Glaze Auto Parts Limited","IN704067","60.03","Equipment - Purchase","190481484","06/07/2018","Fleet Services","Fleet Management","R4000"
"Wolverhampton City Council","http://opendatacommunities.org/id/metropolitan-district-council/wolverhampton","703955","Glaze Auto Parts Limited","IN705996","33.53","Equipment - Purchase","190490256","27/07/2018","Fleet Services","Fleet Management","R4000"
"Wolverhampton City Council","http://opendatacommunities.org/id/metropolitan-district-council/wolverhampton","703955","Glaze Auto Parts Limited","IN706131","15.00","Equipment - Purchase","190490257","27/07/2018","Fleet Services","Fleet Management","R4000"
"Wolverhampton City Council","http://opendatacommunities.org/id/metropolitan-district-council/wolverhampton","703955","Glaze Auto Parts Limited","IN705880","19.42","Equipment - Purchase","190490254","27/07/2018","Fleet Services","Fleet Management","R4000"
"Wolverhampton City Council","http://opendatacommunities.org/id/metropolitan-district-council/wolverhampton","703955","Glaze Auto Parts Limited","IN706388","22.15","Equipment - Purchase","190490261","27/07/2018","Fleet Services","Fleet Management","R4000"
"Wolverhampton City Council","http://opendatacommunities.org/id/metropolitan-district-council/wolverhampton","703955","Glaze Auto Parts Limited","IN706388","42.00","Equipment - Purchase","190490261","27/07/2018","Fleet Services","Fleet Management","R4000"
"Wolverhampton City Council","http://opendatacommunities.org/id/metropolitan-district-council/wolverhampton","703955","Glaze Auto Parts Limited","IN706388","18.30","Equipment - Purchase","190490261","27/07/2018","Fleet Services","Fleet Management","R4000"
"Wolverhampton City Council","http://opendatacommunities.org/id/metropolitan-district-council/wolverhampton","703955","Glaze Auto Parts Limited","IN705051","7.22","Equipment - Purchase","190483209","11/07/2018","Fleet Services","Fleet Management","R4000"
"Wolverhampton City Council","http://opendatacommunities.org/id/metropolitan-district-council/wolverhampton","703955","Glaze Auto Parts Limited","IN704995","281.46","Equipment - Purchase","190486331","23/07/2018","Fleet Services","Fleet Management","R4000"
"Wolverhampton City Council","http://opendatacommunities.org/id/metropolitan-district-council/wolverhampton","703955","Glaze Auto Parts Limited","IN705543","1.72","Equipment - Purchase","190488108","25/07/2018","Fleet Services","Fleet Management","R4000"
"Wolverhampton City Council","http://opendatacommunities.org/id/metropolitan-district-council/wolverhampton","703955","Glaze Auto Parts Limited","IN705543","0.49","Equipment - Purchase","190488108","25/07/2018","Fleet Services","Fleet Management","R4000"
"Wolverhampton City Council","http://opendatacommunities.org/id/metropolitan-district-council/wolverhampton","703955","Glaze Auto Parts Limited","IN703561","49.56","Equipment - Purchase","190481481","06/07/2018","Fleet Services","Fleet Management","R4000"
"Wolverhampton City Council","http://opendatacommunities.org/id/metropolitan-district-council/wolverhampton","703955","Glaze Auto Parts Limited","IN703561","21.36","Equipment - Purchase","190481481","06/07/2018","Fleet Services","Fleet Management","R4000"
"Wolverhampton City Council","http://opendatacommunities.org/id/metropolitan-district-council/wolverhampton","703955","Glaze Auto Parts Limited","IN706368","74.07","Equipment - Purchase","190490259","27/07/2018","Fleet Services","Fleet Management","R4000"
"Wolverhampton City Council","http://opendatacommunities.org/id/metropolitan-district-council/wolverhampton","703955","Glaze Auto Parts Limited","IN706368","105.54","Equipment - Purchase","190490259","27/07/2018","Fleet Services","Fleet Management","R4000"
"Wolverhampton City Council","http://opendatacommunities.org/id/metropolitan-district-council/wolverhampton","703955","Glaze Auto Parts Limited","IN706368","61.95","Equipment - Purchase","190490259","27/07/2018","Fleet Services","Fleet Management","R4000"
"Wolverhampton City Council","http://opendatacommunities.org/id/metropolitan-district-council/wolverhampton","703955","Glaze Auto Parts Limited","IN706303","17.79","Equipment - Purchase","190490258","27/07/2018","Fleet Services","Fleet Management","R4000"
"Wolverhampton City Council","http://opendatacommunities.org/id/metropolitan-district-council/wolverhampton","703955","Glaze Auto Parts Limited","IN706372","48.24","Equipment - Purchase","190490260","27/07/2018","Fleet Services","Fleet Management","R4000"
"Wolverhampton City Council","http://opendatacommunities.org/id/metropolitan-district-council/wolverhampton","703955","Glaze Auto Parts Limited","IN706650","65.10","Equipment - Purchase","190490265","27/07/2018","Fleet Services","Fleet Management","R4000"
"Wolverhampton City Council","http://opendatacommunities.org/id/metropolitan-district-council/wolverhampton","703955","Glaze Auto Parts Limited","IN705095","59.72","Equipment - Purchase","190483210","11/07/2018","Fleet Services","Fleet Management","R4000"
"Wolverhampton City Council","http://opendatacommunities.org/id/metropolitan-district-council/wolverhampton","703955","Glaze Auto Parts Limited","IN705095","35.62","Equipment - Purchase","190483210","11/07/2018","Fleet Services","Fleet Management","R4000"
"Wolverhampton City Council","http://opendatacommunities.org/id/metropolitan-district-council/wolverhampton","703955","Glaze Auto Parts Limited","IN705727","42.72","Equipment - Purchase","190486334","23/07/2018","Fleet Services","Fleet Management","R4000"
"Wolverhampton City Council","http://opendatacommunities.org/id/metropolitan-district-council/wolverhampton","703955","Glaze Auto Parts Limited","IN705363","7.16","Equipment - Purchase","190486333","23/07/2018","Fleet Services","Fleet Management","R4000"
"Wolverhampton City Council","http://opendatacommunities.org/id/metropolitan-district-council/wolverhampton","703955","Glaze Auto Parts Limited","IN705633","21.28","Equipment - Purchase","190488109","25/07/2018","Fleet Services","Fleet Management","R4000"
"Wolverhampton City Council","http://opendatacommunities.org/id/metropolitan-district-council/wolverhampton","703955","Glaze Auto Parts Limited","IN705509","18.27","Equipment - Purchase","190484342","13/07/2018","Fleet Services","Fleet Management","R4000"
"Wolverhampton City Council","http://opendatacommunities.org/id/metropolitan-district-council/wolverhampton","703955","Glaze Auto Parts Limited","IN703529","11.04","Equipment - Purchase","190480858","04/07/2018","Fleet Services","Fleet Management","R4000"
"Wolverhampton City Council","http://opendatacommunities.org/id/metropolitan-district-council/wolverhampton","703955","Glaze Auto Parts Limited","IN703569","135.04","Equipment - Purchase","190481482","06/07/2018","Fleet Services","Fleet Management","R4000"
"Wolverhampton City Council","http://opendatacommunities.org/id/metropolitan-district-council/wolverhampton","703955","Glaze Auto Parts Limited","IN705243","12.76","Equipment - Purchase","190490252","27/07/2018","Fleet Services","Fleet Management","R4000"
"Wolverhampton City Council","http://opendatacommunities.org/id/metropolitan-district-council/wolverhampton","703955","Glaze Auto Parts Limited","IN706466","23.86","Equipment - Purchase","190490263","27/07/2018","Fleet Services","Fleet Management","R4000"
"Wolverhampton City Council","http://opendatacommunities.org/id/metropolitan-district-council/wolverhampton","703955","Glaze Auto Parts Limited","IN706661","54.00","Equipment - Purchase","190490266","27/07/2018","Fleet Services","Fleet Management","R4000"
"Wolverhampton City Council","http://opendatacommunities.org/id/metropolitan-district-council/wolverhampton","703955","Glaze Auto Parts Limited","CR126417","-2.74","Equipment - Purchase","190490243","27/07/2018","Fleet Services","Fleet Management","R4000"
"Wolverhampton City Council","http://opendatacommunities.org/id/metropolitan-district-council/wolverhampton","703955","Glaze Auto Parts Limited","IN704879","40.99","Equipment - Purchase","190483208","11/07/2018","Fleet Services","Fleet Management","R4000"
"Wolverhampton City Council","http://opendatacommunities.org/id/metropolitan-district-council/wolverhampton","703955","Glaze Auto Parts Limited","IN705804","84.94","Equipment - Purchase","190486335","23/07/2018","Fleet Services","Fleet Management","R4000"
"Wolverhampton City Council","http://opendatacommunities.org/id/metropolitan-district-council/wolverhampton","703955","Glaze Auto Parts Limited","IN703905","66.56","Equipment - Purchase","190481483","06/07/2018","Fleet Services","Fleet Management","R4000"
"Wolverhampton City Council","http://opendatacommunities.org/id/metropolitan-district-council/wolverhampton","703955","Glaze Auto Parts Limited","IN705151","35.99","Equipment - Purchase","190486332","23/07/2018","Fleet Services","Fleet Management","R4000"
"Wolverhampton City Council","http://opendatacommunities.org/id/metropolitan-district-council/wolverhampton","703955","Glaze Auto Parts Limited","IN703600","145.00","Equipment - Purchase","190483207","11/07/2018","Fleet Services","Fleet Management","R4000"
"Wolverhampton City Council","http://opendatacommunities.org/id/metropolitan-district-council/wolverhampton","703955","Glaze Auto Parts Limited","IN705343","71.98","Equipment - Purchase","190490253","27/07/2018","Fleet Services","Fleet Management","R4000"
"Wolverhampton City Council","http://opendatacommunities.org/id/metropolitan-district-council/wolverhampton","703955","Glaze Auto Parts Limited","IN705343","71.06","Equipment - Purchase","190490253","27/07/2018","Fleet Services","Fleet Management","R4000"
"Wolverhampton City Council","http://opendatacommunities.org/id/metropolitan-district-council/wolverhampton","703955","Glaze Auto Parts Limited","IN705961","43.88","Equipment - Purchase","190490255","27/07/2018","Fleet Services","Fleet Management","R4000"
"Wolverhampton City Council","http://opendatacommunities.org/id/metropolitan-district-council/wolverhampton","703955","Glaze Auto Parts Limited","IN706430","11.93","Equipment - Purchase","190490262","27/07/2018","Fleet Services","Fleet Management","R4000"
"Wolverhampton City Council","http://opendatacommunities.org/id/metropolitan-district-council/wolverhampton","703955","Glaze Auto Parts Limited","IN706630","5.37","Equipment - Purchase","190490264","27/07/2018","Fleet Services","Fleet Management","R4000"
"Wolverhampton City Council","http://opendatacommunities.org/id/metropolitan-district-council/wolverhampton","703955","Glaze Auto Parts Limited","CR125862","-183.30","Equipment - Purchase","190486293","23/07/2018","Fleet Services","Fleet Management","R4000"
"Wolverhampton City Council","http://opendatacommunities.org/id/metropolitan-district-council/wolverhampton","703955","Glaze Auto Parts Limited","IN705738","2.00","Equipment - Purchase","190484343","13/07/2018","Fleet Services","Fleet Management","R4000"
"Wolverhampton City Council","http://opendatacommunities.org/id/metropolitan-district-council/wolverhampton","703955","Glaze Auto Parts Limited","IN706518","8.12","Equipment - Purchase","190488110","25/07/2018","Fleet Services","Fleet Management","R4000"
"Wolverhampton City Council","http://opendatacommunities.org/id/metropolitan-district-council/wolverhampton","704039","Greenacres Leonard Cheshire Disab�Ty","P177608 22071820180703","4,179.36","TPP - Nursing Care - Long Term","190475983","04/07/2018","Physical Disabilities Care Purchasing","PD Care Purchasing (Spot Placements)","R5410"
"Wolverhampton City Council","http://opendatacommunities.org/id/metropolitan-district-council/wolverhampton","704044","Greenhous Commercials Limited","13709342","5.78","Services - Professional Fees","190480838","04/07/2018","Fleet Services","Fleet Management","R4400"
"Wolverhampton City Council","http://opendatacommunities.org/id/metropolitan-district-council/wolverhampton","704044","Greenhous Commercials Limited","13709342","50.00","Services - Professional Fees","190480838","04/07/2018","Fleet Services","Fleet Management","R4400"
"Wolverhampton City Council","http://opendatacommunities.org/id/metropolitan-district-council/wolverhampton","704044","Greenhous Commercials Limited","13709342","57.75","Services - Professional Fees","190480838","04/07/2018","Fleet Services","Fleet Management","R4400"
"Wolverhampton City Council","http://opendatacommunities.org/id/metropolitan-district-council/wolverhampton","704044","Greenhous Commercials Limited","13709342","139.21","Services - Professional Fees","190480838","04/07/2018","Fleet Services","Fleet Management","R4400"
"Wolverhampton City Council","http://opendatacommunities.org/id/metropolitan-district-council/wolverhampton","704044","Greenhous Commercials Limited","13709342","231.00","Services - Professional Fees","190480838","04/07/2018","Fleet Services","Fleet Management","R4400"
"Wolverhampton City Council","http://opendatacommunities.org/id/metropolitan-district-council/wolverhampton","704044","Greenhous Commercials Limited","13709342","57.75","Services - Professional Fees","190480838","04/07/2018","Fleet Services","Fleet Management","R4400"
"Wolverhampton City Council","http://opendatacommunities.org/id/metropolitan-district-council/wolverhampton","704044","Greenhous Commercials Limited","13709342","0.84","Services - Professional Fees","190480838","04/07/2018","Fleet Services","Fleet Management","R4400"
"Wolverhampton City Council","http://opendatacommunities.org/id/metropolitan-district-council/wolverhampton","704044","Greenhous Commercials Limited","13709342","17.00","Services - Professional Fees","190480838","04/07/2018","Fleet Services","Fleet Management","R4400"
"Wolverhampton City Council","http://opendatacommunities.org/id/metropolitan-district-council/wolverhampton","704044","Greenhous Commercials Limited","13093524","7.67","Equipment - Purchase","190483125","11/07/2018","Fleet Services","Fleet Management","R4000"
"Wolverhampton City Council","http://opendatacommunities.org/id/metropolitan-district-council/wolverhampton","704044","Greenhous Commercials Limited","13093524","7.63","Equipment - Purchase","190483125","11/07/2018","Fleet Services","Fleet Management","R4000"
"Wolverhampton City Council","http://opendatacommunities.org/id/metropolitan-district-council/wolverhampton","704044","Greenhous Commercials Limited","13711960","65.00","Services - Professional Fees","190483134","11/07/2018","Fleet Services","Fleet Management","R4400"
"Wolverhampton City Council","http://opendatacommunities.org/id/metropolitan-district-council/wolverhampton","704044","Greenhous Commercials Limited","13711960","54.00","Services - Professional Fees","190483134","11/07/2018","Fleet Services","Fleet Management","R4400"
"Wolverhampton City Council","http://opendatacommunities.org/id/metropolitan-district-council/wolverhampton","704044","Greenhous Commercials Limited","13711960","14.00","Services - Professional Fees","190483134","11/07/2018","Fleet Services","Fleet Management","R4400"
"Wolverhampton City Council","http://opendatacommunities.org/id/metropolitan-district-council/wolverhampton","704044","Greenhous Commercials Limited","13711960","15.00","Services - Professional Fees","190483134","11/07/2018","Fleet Services","Fleet Management","R4400"
"Wolverhampton City Council","http://opendatacommunities.org/id/metropolitan-district-council/wolverhampton","704044","Greenhous Commercials Limited","13712061","86.63","Services - Professional Fees","190483138","11/07/2018","Fleet Services","Fleet Management","R4400"
"Wolverhampton City Council","http://opendatacommunities.org/id/metropolitan-district-council/wolverhampton","704044","Greenhous Commercials Limited","13712573","115.50","Services - Professional Fees","190483143","11/07/2018","Fleet Services","Fleet Management","R4400"
"Wolverhampton City Council","http://opendatacommunities.org/id/metropolitan-district-council/wolverhampton","704044","Greenhous Commercials Limited","13712573","10.22","Services - Professional Fees","190483143","11/07/2018","Fleet Services","Fleet Management","R4400"
"Wolverhampton City Council","http://opendatacommunities.org/id/metropolitan-district-council/wolverhampton","704044","Greenhous Commercials Limited","13712573","28.88","Services - Professional Fees","190483143","11/07/2018","Fleet Services","Fleet Management","R4400"
"Wolverhampton City Council","http://opendatacommunities.org/id/metropolitan-district-council/wolverhampton","704044","Greenhous Commercials Limited","13712573","49.35","Services - Professional Fees","190483143","11/07/2018","Fleet Services","Fleet Management","R4400"
"Wolverhampton City Council","http://opendatacommunities.org/id/metropolitan-district-council/wolverhampton","704044","Greenhous Commercials Limited","13712401","65.00","Services - Professional Fees","190483141","11/07/2018","Fleet Services","Fleet Management","R4400"
"Wolverhampton City Council","http://opendatacommunities.org/id/metropolitan-district-council/wolverhampton","704044","Greenhous Commercials Limited","13712401","15.00","Services - Professional Fees","190483141","11/07/2018","Fleet Services","Fleet Management","R4400"
"Wolverhampton City Council","http://opendatacommunities.org/id/metropolitan-district-council/wolverhampton","704044","Greenhous Commercials Limited","13710881","11.55","Services - Professional Fees","190490198","27/07/2018","Fleet Services","Fleet Management","R4400"
"Wolverhampton City Council","http://opendatacommunities.org/id/metropolitan-district-council/wolverhampton","704044","Greenhous Commercials Limited","13710881","0.33","Services - Professional Fees","190490198","27/07/2018","Fleet Services","Fleet Management","R4400"
"Wolverhampton City Council","http://opendatacommunities.org/id/metropolitan-district-council/wolverhampton","704044","Greenhous Commercials Limited","13710881","115.50","Services - Professional Fees","190490198","27/07/2018","Fleet Services","Fleet Management","R4400"
"Wolverhampton City Council","http://opendatacommunities.org/id/metropolitan-district-council/wolverhampton","704044","Greenhous Commercials Limited","13710881","182.71","Services - Professional Fees","190490198","27/07/2018","Fleet Services","Fleet Management","R4400"
"Wolverhampton City Council","http://opendatacommunities.org/id/metropolitan-district-council/wolverhampton","704044","Greenhous Commercials Limited","13710881","57.75","Services - Professional Fees","190490198","27/07/2018","Fleet Services","Fleet Management","R4400"
"Wolverhampton City Council","http://opendatacommunities.org/id/metropolitan-district-council/wolverhampton","704044","Greenhous Commercials Limited","13710881","13.20","Services - Professional Fees","190490198","27/07/2018","Fleet Services","Fleet Management","R4400"
"Wolverhampton City Council","http://opendatacommunities.org/id/metropolitan-district-council/wolverhampton","704044","Greenhous Commercials Limited","13710881","236.68","Services - Professional Fees","190490198","27/07/2018","Fleet Services","Fleet Management","R4400"
"Wolverhampton City Council","http://opendatacommunities.org/id/metropolitan-district-council/wolverhampton","704044","Greenhous Commercials Limited","13710881","98.10","Services - Professional Fees","190490198","27/07/2018","Fleet Services","Fleet Management","R4400"
"Wolverhampton City Council","http://opendatacommunities.org/id/metropolitan-district-council/wolverhampton","704044","Greenhous Commercials Limited","13710881","144.38","Services - Professional Fees","190490198","27/07/2018","Fleet Services","Fleet Management","R4400"
"Wolverhampton City Council","http://opendatacommunities.org/id/metropolitan-district-council/wolverhampton","704044","Greenhous Commercials Limited","13710881","231.00","Services - Professional Fees","190490198","27/07/2018","Fleet Services","Fleet Management","R4400"
"Wolverhampton City Council","http://opendatacommunities.org/id/metropolitan-district-council/wolverhampton","704044","Greenhous Commercials Limited","13710881","86.63","Services - Professional Fees","190490198","27/07/2018","Fleet Services","Fleet Management","R4400"
"Wolverhampton City Council","http://opendatacommunities.org/id/metropolitan-district-council/wolverhampton","704044","Greenhous Commercials Limited","13710881","112.62","Services - Professional Fees","190490198","27/07/2018","Fleet Services","Fleet Management","R4400"
"Wolverhampton City Council","http://opendatacommunities.org/id/metropolitan-district-council/wolverhampton","704044","Greenhous Commercials Limited","13710881","50.00","Services - Professional Fees","190490198","27/07/2018","Fleet Services","Fleet Management","R4400"
"Wolverhampton City Council","http://opendatacommunities.org/id/metropolitan-district-council/wolverhampton","704044","Greenhous Commercials Limited","13710881","28.88","Services - Professional Fees","190490198","27/07/2018","Fleet Services","Fleet Management","R4400"
"Wolverhampton City Council","http://opendatacommunities.org/id/metropolitan-district-council/wolverhampton","704044","Greenhous Commercials Limited","13712990","240.77","Services - Professional Fees","190490199","27/07/2018","Fleet Services","Fleet Management","R4400"
"Wolverhampton City Council","http://opendatacommunities.org/id/metropolitan-district-council/wolverhampton","704044","Greenhous Commercials Limited","1301948","-15.30","Equipment - Purchase","190481454","06/07/2018","Fleet Services","Fleet Management","R4000"
"Wolverhampton City Council","http://opendatacommunities.org/id/metropolitan-district-council/wolverhampton","704044","Greenhous Commercials Limited","13097086","296.00","Equipment - Purchase","190486228","23/07/2018","Fleet Services","Fleet Management","R4000"
"Wolverhampton City Council","http://opendatacommunities.org/id/metropolitan-district-council/wolverhampton","704044","Greenhous Commercials Limited","13710917","35.00","MOT & HGV Tests","190486239","23/07/2018","Fleet Services","Fleet Management","R3005"
"Wolverhampton City Council","http://opendatacommunities.org/id/metropolitan-district-council/wolverhampton","704044","Greenhous Commercials Limited","13710917","91.00","MOT & HGV Tests","190486239","23/07/2018","Fleet Services","Fleet Management","R3005"
"Wolverhampton City Council","http://opendatacommunities.org/id/metropolitan-district-council/wolverhampton","704044","Greenhous Commercials Limited","13713137","35.00","MOT & HGV Tests","190486240","23/07/2018","Fleet Services","Fleet Management","R3005"
"Wolverhampton City Council","http://opendatacommunities.org/id/metropolitan-district-council/wolverhampton","704044","Greenhous Commercials Limited","13713137","113.00","MOT & HGV Tests","190486240","23/07/2018","Fleet Services","Fleet Management","R3005"
"Wolverhampton City Council","http://opendatacommunities.org/id/metropolitan-district-council/wolverhampton","704044","Greenhous Commercials Limited","13099753","160.00","Equipment - Purchase","190484320","13/07/2018","Fleet Services","Fleet Management","R4000"
"Wolverhampton City Council","http://opendatacommunities.org/id/metropolitan-district-council/wolverhampton","704044","Greenhous Commercials Limited","13101246","193.00","Equipment - Purchase","190488078","25/07/2018","Fleet Services","Fleet Management","R4000"
"Wolverhampton City Council","http://opendatacommunities.org/id/metropolitan-district-council/wolverhampton","704044","Greenhous Commercials Limited","13092440","19.95","Equipment - Purchase","190480834","04/07/2018","Fleet Services","Fleet Management","R4000"
"Wolverhampton City Council","http://opendatacommunities.org/id/metropolitan-district-council/wolverhampton","704044","Greenhous Commercials Limited","13092440","24.96","Equipment - Purchase","190480834","04/07/2018","Fleet Services","Fleet Management","R4000"
"Wolverhampton City Council","http://opendatacommunities.org/id/metropolitan-district-council/wolverhampton","704044","Greenhous Commercials Limited","13092440","310.95","Equipment - Purchase","190480834","04/07/2018","Fleet Services","Fleet Management","R4000"
"Wolverhampton City Council","http://opendatacommunities.org/id/metropolitan-district-council/wolverhampton","704044","Greenhous Commercials Limited","13092440","92.52","Equipment - Purchase","190480834","04/07/2018","Fleet Services","Fleet Management","R4000"
"Wolverhampton City Council","http://opendatacommunities.org/id/metropolitan-district-council/wolverhampton","704044","Greenhous Commercials Limited","13092440","179.00","Equipment - Purchase","190480834","04/07/2018","Fleet Services","Fleet Management","R4000"
"Wolverhampton City Council","http://opendatacommunities.org/id/metropolitan-district-council/wolverhampton","704044","Greenhous Commercials Limited","13092440","43.00","Equipment - Purchase","190480834","04/07/2018","Fleet Services","Fleet Management","R4000"
"Wolverhampton City Council","http://opendatacommunities.org/id/metropolitan-district-council/wolverhampton","704044","Greenhous Commercials Limited","1363404","-195.00","Equipment - Purchase","190480837","04/07/2018","Fleet Services","Fleet Management","R4000"
"Wolverhampton City Council","http://opendatacommunities.org/id/metropolitan-district-council/wolverhampton","704044","Greenhous Commercials Limited","13093660","7.82","Equipment - Purchase","190483128","11/07/2018","Fleet Services","Fleet Management","R4000"
"Wolverhampton City Council","http://opendatacommunities.org/id/metropolitan-district-council/wolverhampton","704044","Greenhous Commercials Limited","13069886","61.86","Equipment - Purchase","190483124","11/07/2018","Fleet Services","Fleet Management","R4000"
"Wolverhampton City Council","http://opendatacommunities.org/id/metropolitan-district-council/wolverhampton","704044","Greenhous Commercials Limited","13709049","5.78","Services - Professional Fees","190483132","11/07/2018","Fleet Services","Fleet Management","R4400"
"Wolverhampton City Council","http://opendatacommunities.org/id/metropolitan-district-council/wolverhampton","704044","Greenhous Commercials Limited","13709049","3.42","Services - Professional Fees","190483132","11/07/2018","Fleet Services","Fleet Management","R4400"
"Wolverhampton City Council","http://opendatacommunities.org/id/metropolitan-district-council/wolverhampton","704044","Greenhous Commercials Limited","13709049","0.27","Services - Professional Fees","190483132","11/07/2018","Fleet Services","Fleet Management","R4400"
"Wolverhampton City Council","http://opendatacommunities.org/id/metropolitan-district-council/wolverhampton","704044","Greenhous Commercials Limited","13709049","11.55","Services - Professional Fees","190483132","11/07/2018","Fleet Services","Fleet Management","R4400"
"Wolverhampton City Council","http://opendatacommunities.org/id/metropolitan-district-council/wolverhampton","704044","Greenhous Commercials Limited","13709049","28.88","Services - Professional Fees","190483132","11/07/2018","Fleet Services","Fleet Management","R4400"
"Wolverhampton City Council","http://opendatacommunities.org/id/metropolitan-district-council/wolverhampton","704044","Greenhous Commercials Limited","13709049","57.75","Services - Professional Fees","190483132","11/07/2018","Fleet Services","Fleet Management","R4400"
"Wolverhampton City Council","http://opendatacommunities.org/id/metropolitan-district-council/wolverhampton","704044","Greenhous Commercials Limited","13709049","33.75","Services - Professional Fees","190483132","11/07/2018","Fleet Services","Fleet Management","R4400"
"Wolverhampton City Council","http://opendatacommunities.org/id/metropolitan-district-council/wolverhampton","704044","Greenhous Commercials Limited","13709049","14.44","Services - Professional Fees","190483132","11/07/2018","Fleet Services","Fleet Management","R4400"
"Wolverhampton City Council","http://opendatacommunities.org/id/metropolitan-district-council/wolverhampton","704044","Greenhous Commercials Limited","13709049","50.00","Services - Professional Fees","190483132","11/07/2018","Fleet Services","Fleet Management","R4400"
"Wolverhampton City Council","http://opendatacommunities.org/id/metropolitan-district-council/wolverhampton","704044","Greenhous Commercials Limited","13709049","9.11","Services - Professional Fees","190483132","11/07/2018","Fleet Services","Fleet Management","R4400"
"Wolverhampton City Council","http://opendatacommunities.org/id/metropolitan-district-council/wolverhampton","704044","Greenhous Commercials Limited","13709049","4.23","Services - Professional Fees","190483132","11/07/2018","Fleet Services","Fleet Management","R4400"
"Wolverhampton City Council","http://opendatacommunities.org/id/metropolitan-district-council/wolverhampton","704044","Greenhous Commercials Limited","13709049","43.31","Services - Professional Fees","190483132","11/07/2018","Fleet Services","Fleet Management","R4400"
"Wolverhampton City Council","http://opendatacommunities.org/id/metropolitan-district-council/wolverhampton","704044","Greenhous Commercials Limited","13709049","57.75","Services - Professional Fees","190483132","11/07/2018","Fleet Services","Fleet Management","R4400"
"Wolverhampton City Council","http://opendatacommunities.org/id/metropolitan-district-council/wolverhampton","704044","Greenhous Commercials Limited","13709049","54.00","Services - Professional Fees","190483132","11/07/2018","Fleet Services","Fleet Management","R4400"
"Wolverhampton City Council","http://opendatacommunities.org/id/metropolitan-district-council/wolverhampton","704044","Greenhous Commercials Limited","13709049","5.31","Services - Professional Fees","190483132","11/07/2018","Fleet Services","Fleet Management","R4400"
"Wolverhampton City Council","http://opendatacommunities.org/id/metropolitan-district-council/wolverhampton","704044","Greenhous Commercials Limited","13709049","231.00","Services - Professional Fees","190483132","11/07/2018","Fleet Services","Fleet Management","R4400"
"Wolverhampton City Council","http://opendatacommunities.org/id/metropolitan-district-council/wolverhampton","704044","Greenhous Commercials Limited","13709049","55.56","Services - Professional Fees","190483132","11/07/2018","Fleet Services","Fleet Management","R4400"
"Wolverhampton City Council","http://opendatacommunities.org/id/metropolitan-district-council/wolverhampton","704044","Greenhous Commercials Limited","13712677","346.50","Services - Professional Fees","190483144","11/07/2018","Fleet Services","Fleet Management","R4400"
"Wolverhampton City Council","http://opendatacommunities.org/id/metropolitan-district-council/wolverhampton","704044","Greenhous Commercials Limited","13712677","115.50","Services - Professional Fees","190483144","11/07/2018","Fleet Services","Fleet Management","R4400"
"Wolverhampton City Council","http://opendatacommunities.org/id/metropolitan-district-council/wolverhampton","704044","Greenhous Commercials Limited","13712677","4.56","Services - Professional Fees","190483144","11/07/2018","Fleet Services","Fleet Management","R4400"
"Wolverhampton City Council","http://opendatacommunities.org/id/metropolitan-district-council/wolverhampton","704044","Greenhous Commercials Limited","13712770","15.00","Services - Professional Fees","190483145","11/07/2018","Fleet Services","Fleet Management","R4400"
"Wolverhampton City Council","http://opendatacommunities.org/id/metropolitan-district-council/wolverhampton","704044","Greenhous Commercials Limited","13712770","65.00","Services - Professional Fees","190483145","11/07/2018","Fleet Services","Fleet Management","R4400"
"Wolverhampton City Council","http://opendatacommunities.org/id/metropolitan-district-council/wolverhampton","704044","Greenhous Commercials Limited","13101251","59.00","Equipment - Purchase","190490197","27/07/2018","Fleet Services","Fleet Management","R4000"
"Wolverhampton City Council","http://opendatacommunities.org/id/metropolitan-district-council/wolverhampton","704044","Greenhous Commercials Limited","13095865","126.00","Equipment - Purchase","190486227","23/07/2018","Fleet Services","Fleet Management","R4000"
"Wolverhampton City Council","http://opendatacommunities.org/id/metropolitan-district-council/wolverhampton","704044","Greenhous Commercials Limited","13713138","113.00","MOT & HGV Tests","190486241","23/07/2018","Fleet Services","Fleet Management","R3005"
"Wolverhampton City Council","http://opendatacommunities.org/id/metropolitan-district-council/wolverhampton","704044","Greenhous Commercials Limited","13713138","35.00","MOT & HGV Tests","190486241","23/07/2018","Fleet Services","Fleet Management","R3005"
"Wolverhampton City Council","http://opendatacommunities.org/id/metropolitan-district-council/wolverhampton","704044","Greenhous Commercials Limited","13713164","15.00","Services - Professional Fees","190486242","23/07/2018","Fleet Services","Fleet Management","R4400"
"Wolverhampton City Council","http://opendatacommunities.org/id/metropolitan-district-council/wolverhampton","704044","Greenhous Commercials Limited","13713164","65.00","Services - Professional Fees","190486242","23/07/2018","Fleet Services","Fleet Management","R4400"
"Wolverhampton City Council","http://opendatacommunities.org/id/metropolitan-district-council/wolverhampton","704044","Greenhous Commercials Limited","13713449","35.00","MOT & HGV Tests","190486245","23/07/2018","Fleet Services","Fleet Management","R3005"
"Wolverhampton City Council","http://opendatacommunities.org/id/metropolitan-district-council/wolverhampton","704044","Greenhous Commercials Limited","13713449","91.00","MOT & HGV Tests","190486245","23/07/2018","Fleet Services","Fleet Management","R3005"
"Wolverhampton City Council","http://opendatacommunities.org/id/metropolitan-district-council/wolverhampton","704044","Greenhous Commercials Limited","13065768","61.86","Equipment - Purchase","190481455","06/07/2018","Fleet Services","Fleet Management","R4000"
"Wolverhampton City Council","http://opendatacommunities.org/id/metropolitan-district-council/wolverhampton","704044","Greenhous Commercials Limited","13711460","231.00","Services - Professional Fees","190480839","04/07/2018","Fleet Services","Fleet Management","R4400"
"Wolverhampton City Council","http://opendatacommunities.org/id/metropolitan-district-council/wolverhampton","704044","Greenhous Commercials Limited","13711460","406.17","Services - Professional Fees","190480839","04/07/2018","Fleet Services","Fleet Management","R4400"
"Wolverhampton City Council","http://opendatacommunities.org/id/metropolitan-district-council/wolverhampton","704044","Greenhous Commercials Limited","13711460","80.00","Services - Professional Fees","190480839","04/07/2018","Fleet Services","Fleet Management","R4400"
"Wolverhampton City Council","http://opendatacommunities.org/id/metropolitan-district-council/wolverhampton","704044","Greenhous Commercials Limited","13711460","-80.00","Services - Professional Fees","190480839","04/07/2018","Fleet Services","Fleet Management","R4400"
"Wolverhampton City Council","http://opendatacommunities.org/id/metropolitan-district-council/wolverhampton","704044","Greenhous Commercials Limited","13093643","228.00","Equipment - Purchase","190483127","11/07/2018","Fleet Services","Fleet Management","R4000"
"Wolverhampton City Council","http://opendatacommunities.org/id/metropolitan-district-council/wolverhampton","704044","Greenhous Commercials Limited","13093572","79.52","Equipment - Purchase","190483126","11/07/2018","Fleet Services","Fleet Management","R4000"
"Wolverhampton City Council","http://opendatacommunities.org/id/metropolitan-district-council/wolverhampton","704044","Greenhous Commercials Limited","1363250","-28.88","Services - Professional Fees","190483130","11/07/2018","Fleet Services","Fleet Management","R4400"
"Wolverhampton City Council","http://opendatacommunities.org/id/metropolitan-district-council/wolverhampton","704044","Greenhous Commercials Limited","13712058","115.50","Services - Professional Fees","190483137","11/07/2018","Fleet Services","Fleet Management","R4400"
"Wolverhampton City Council","http://opendatacommunities.org/id/metropolitan-district-council/wolverhampton","704044","Greenhous Commercials Limited","13712058","417.17","Services - Professional Fees","190483137","11/07/2018","Fleet Services","Fleet Management","R4400"
"Wolverhampton City Council","http://opendatacommunities.org/id/metropolitan-district-council/wolverhampton","704044","Greenhous Commercials Limited","13712058","57.75","Services - Professional Fees","190483137","11/07/2018","Fleet Services","Fleet Management","R4400"
"Wolverhampton City Council","http://opendatacommunities.org/id/metropolitan-district-council/wolverhampton","704044","Greenhous Commercials Limited","13712206","35.00","MOT & HGV Tests","190483139","11/07/2018","Fleet Services","Fleet Management","R3005"
"Wolverhampton City Council","http://opendatacommunities.org/id/metropolitan-district-council/wolverhampton","704044","Greenhous Commercials Limited","13712206","15.00","MOT & HGV Tests","190483139","11/07/2018","Fleet Services","Fleet Management","R3005"
"Wolverhampton City Council","http://opendatacommunities.org/id/metropolitan-district-council/wolverhampton","704044","Greenhous Commercials Limited","13712493","15.00","Services - Professional Fees","190483142","11/07/2018","Fleet Services","Fleet Management","R4400"
"Wolverhampton City Council","http://opendatacommunities.org/id/metropolitan-district-council/wolverhampton","704044","Greenhous Commercials Limited","13712493","45.00","Services - Professional Fees","190483142","11/07/2018","Fleet Services","Fleet Management","R4400"
"Wolverhampton City Council","http://opendatacommunities.org/id/metropolitan-district-council/wolverhampton","704044","Greenhous Commercials Limited","13712493","54.00","Services - Professional Fees","190483142","11/07/2018","Fleet Services","Fleet Management","R4400"
"Wolverhampton City Council","http://opendatacommunities.org/id/metropolitan-district-council/wolverhampton","704044","Greenhous Commercials Limited","13099520","920.00","Equipment - Purchase","190490196","27/07/2018","Fleet Services","Fleet Management","R4000"
"Wolverhampton City Council","http://opendatacommunities.org/id/metropolitan-district-council/wolverhampton","704044","Greenhous Commercials Limited","13713334","15.00","Services - Professional Fees","190486244","23/07/2018","Fleet Services","Fleet Management","R4400"
"Wolverhampton City Council","http://opendatacommunities.org/id/metropolitan-district-council/wolverhampton","704044","Greenhous Commercials Limited","13713334","65.00","Services - Professional Fees","190486244","23/07/2018","Fleet Services","Fleet Management","R4400"
"Wolverhampton City Council","http://opendatacommunities.org/id/metropolitan-district-council/wolverhampton","704044","Greenhous Commercials Limited","13098138","126.00","Equipment - Purchase","190486230","23/07/2018","Fleet Services","Fleet Management","R4000"
"Wolverhampton City Council","http://opendatacommunities.org/id/metropolitan-district-council/wolverhampton","704044","Greenhous Commercials Limited","13095827","130.00","Equipment - Purchase","190486226","23/07/2018","Fleet Services","Fleet Management","R4000"
"Wolverhampton City Council","http://opendatacommunities.org/id/metropolitan-district-council/wolverhampton","704044","Greenhous Commercials Limited","13097916","2.79","Equipment - Purchase","190486229","23/07/2018","Fleet Services","Fleet Management","R4000"
"Wolverhampton City Council","http://opendatacommunities.org/id/metropolitan-district-council/wolverhampton","704044","Greenhous Commercials Limited","13095340","96.50","Equipment - Purchase","190483129","11/07/2018","Fleet Services","Fleet Management","R4000"
"Wolverhampton City Council","http://opendatacommunities.org/id/metropolitan-district-council/wolverhampton","704044","Greenhous Commercials Limited","13707899","72.19","Services - Professional Fees","190483131","11/07/2018","Fleet Services","Fleet Management","R4400"
"Wolverhampton City Council","http://opendatacommunities.org/id/metropolitan-district-council/wolverhampton","704044","Greenhous Commercials Limited","13707899","115.50","Services - Professional Fees","190483131","11/07/2018","Fleet Services","Fleet Management","R4400"
"Wolverhampton City Council","http://opendatacommunities.org/id/metropolitan-district-council/wolverhampton","704044","Greenhous Commercials Limited","13707899","109.94","Services - Professional Fees","190483131","11/07/2018","Fleet Services","Fleet Management","R4400"
"Wolverhampton City Council","http://opendatacommunities.org/id/metropolitan-district-council/wolverhampton","704044","Greenhous Commercials Limited","13707899","45.00","Services - Professional Fees","190483131","11/07/2018","Fleet Services","Fleet Management","R4400"
"Wolverhampton City Council","http://opendatacommunities.org/id/metropolitan-district-council/wolverhampton","704044","Greenhous Commercials Limited","13707899","28.88","Services - Professional Fees","190483131","11/07/2018","Fleet Services","Fleet Management","R4400"
"Wolverhampton City Council","http://opendatacommunities.org/id/metropolitan-district-council/wolverhampton","704044","Greenhous Commercials Limited","13707899","7.60","Services - Professional Fees","190483131","11/07/2018","Fleet Services","Fleet Management","R4400"
"Wolverhampton City Council","http://opendatacommunities.org/id/metropolitan-district-council/wolverhampton","704044","Greenhous Commercials Limited","13707899","6.27","Services - Professional Fees","190483131","11/07/2018","Fleet Services","Fleet Management","R4400"
"Wolverhampton City Council","http://opendatacommunities.org/id/metropolitan-district-council/wolverhampton","704044","Greenhous Commercials Limited","13707899","23.10","Services - Professional Fees","190483131","11/07/2018","Fleet Services","Fleet Management","R4400"
"Wolverhampton City Council","http://opendatacommunities.org/id/metropolitan-district-council/wolverhampton","704044","Greenhous Commercials Limited","13707899","28.88","Services - Professional Fees","190483131","11/07/2018","Fleet Services","Fleet Management","R4400"
"Wolverhampton City Council","http://opendatacommunities.org/id/metropolitan-district-council/wolverhampton","704044","Greenhous Commercials Limited","13707899","5.45","Services - Professional Fees","190483131","11/07/2018","Fleet Services","Fleet Management","R4400"
"Wolverhampton City Council","http://opendatacommunities.org/id/metropolitan-district-council/wolverhampton","704044","Greenhous Commercials Limited","13707899","15.00","Services - Professional Fees","190483131","11/07/2018","Fleet Services","Fleet Management","R4400"
"Wolverhampton City Council","http://opendatacommunities.org/id/metropolitan-district-council/wolverhampton","704044","Greenhous Commercials Limited","13707899","54.00","Services - Professional Fees","190483131","11/07/2018","Fleet Services","Fleet Management","R4400"
"Wolverhampton City Council","http://opendatacommunities.org/id/metropolitan-district-council/wolverhampton","704044","Greenhous Commercials Limited","13707899","45.00","Services - Professional Fees","190483131","11/07/2018","Fleet Services","Fleet Management","R4400"
"Wolverhampton City Council","http://opendatacommunities.org/id/metropolitan-district-council/wolverhampton","704044","Greenhous Commercials Limited","13710624","14.44","Services - Professional Fees","190483133","11/07/2018","Fleet Services","Fleet Management","R4400"
"Wolverhampton City Council","http://opendatacommunities.org/id/metropolitan-district-council/wolverhampton","704044","Greenhous Commercials Limited","13710624","57.75","Services - Professional Fees","190483133","11/07/2018","Fleet Services","Fleet Management","R4400"
"Wolverhampton City Council","http://opendatacommunities.org/id/metropolitan-district-council/wolverhampton","704044","Greenhous Commercials Limited","13710624","11.12","Services - Professional Fees","190483133","11/07/2018","Fleet Services","Fleet Management","R4400"
"Wolverhampton City Council","http://opendatacommunities.org/id/metropolitan-district-council/wolverhampton","704044","Greenhous Commercials Limited","13710624","49.92","Services - Professional Fees","190483133","11/07/2018","Fleet Services","Fleet Management","R4400"
"Wolverhampton City Council","http://opendatacommunities.org/id/metropolitan-district-council/wolverhampton","704044","Greenhous Commercials Limited","13710624","21.00","Services - Professional Fees","190483133","11/07/2018","Fleet Services","Fleet Management","R4400"
"Wolverhampton City Council","http://opendatacommunities.org/id/metropolitan-district-council/wolverhampton","704044","Greenhous Commercials Limited","13710624","57.75","Services - Professional Fees","190483133","11/07/2018","Fleet Services","Fleet Management","R4400"
"Wolverhampton City Council","http://opendatacommunities.org/id/metropolitan-district-council/wolverhampton","704044","Greenhous Commercials Limited","13710624","69.30","Services - Professional Fees","190483133","11/07/2018","Fleet Services","Fleet Management","R4400"
"Wolverhampton City Council","http://opendatacommunities.org/id/metropolitan-district-council/wolverhampton","704044","Greenhous Commercials Limited","13710624","12.45","Services - Professional Fees","190483133","11/07/2018","Fleet Services","Fleet Management","R4400"
"Wolverhampton City Council","http://opendatacommunities.org/id/metropolitan-district-council/wolverhampton","704044","Greenhous Commercials Limited","13710624","5.78","Services - Professional Fees","190483133","11/07/2018","Fleet Services","Fleet Management","R4400"
"Wolverhampton City Council","http://opendatacommunities.org/id/metropolitan-district-council/wolverhampton","704044","Greenhous Commercials Limited","13710624","41.76","Services - Professional Fees","190483133","11/07/2018","Fleet Services","Fleet Management","R4400"
"Wolverhampton City Council","http://opendatacommunities.org/id/metropolitan-district-council/wolverhampton","704044","Greenhous Commercials Limited","13710624","0.33","Services - Professional Fees","190483133","11/07/2018","Fleet Services","Fleet Management","R4400"
"Wolverhampton City Council","http://opendatacommunities.org/id/metropolitan-district-council/wolverhampton","704044","Greenhous Commercials Limited","13710624","57.75","Services - Professional Fees","190483133","11/07/2018","Fleet Services","Fleet Management","R4400"
"Wolverhampton City Council","http://opendatacommunities.org/id/metropolitan-district-council/wolverhampton","704044","Greenhous Commercials Limited","13710624","5.45","Services - Professional Fees","190483133","11/07/2018","Fleet Services","Fleet Management","R4400"
"Wolverhampton City Council","http://opendatacommunities.org/id/metropolitan-district-council/wolverhampton","704044","Greenhous Commercials Limited","13710624","4.23","Services - Professional Fees","190483133","11/07/2018","Fleet Services","Fleet Management","R4400"
"Wolverhampton City Council","http://opendatacommunities.org/id/metropolitan-district-council/wolverhampton","704044","Greenhous Commercials Limited","13710624","115.50","Services - Professional Fees","190483133","11/07/2018","Fleet Services","Fleet Management","R4400"
"Wolverhampton City Council","http://opendatacommunities.org/id/metropolitan-district-council/wolverhampton","704044","Greenhous Commercials Limited","13710624","20.21","Services - Professional Fees","190483133","11/07/2018","Fleet Services","Fleet Management","R4400"
"Wolverhampton City Council","http://opendatacommunities.org/id/metropolitan-district-council/wolverhampton","704044","Greenhous Commercials Limited","13710624","5.78","Services - Professional Fees","190483133","11/07/2018","Fleet Services","Fleet Management","R4400"
"Wolverhampton City Council","http://opendatacommunities.org/id/metropolitan-district-council/wolverhampton","704044","Greenhous Commercials Limited","13710624","231.00","Services - Professional Fees","190483133","11/07/2018","Fleet Services","Fleet Management","R4400"
"Wolverhampton City Council","http://opendatacommunities.org/id/metropolitan-district-council/wolverhampton","704044","Greenhous Commercials Limited","13710624","21.61","Services - Professional Fees","190483133","11/07/2018","Fleet Services","Fleet Management","R4400"
"Wolverhampton City Council","http://opendatacommunities.org/id/metropolitan-district-council/wolverhampton","704044","Greenhous Commercials Limited","13710624","58.21","Services - Professional Fees","190483133","11/07/2018","Fleet Services","Fleet Management","R4400"
"Wolverhampton City Council","http://opendatacommunities.org/id/metropolitan-district-council/wolverhampton","704044","Greenhous Commercials Limited","13710624","50.00","Services - Professional Fees","190483133","11/07/2018","Fleet Services","Fleet Management","R4400"
"Wolverhampton City Council","http://opendatacommunities.org/id/metropolitan-district-council/wolverhampton","704044","Greenhous Commercials Limited","13712022","153.60","Services - Professional Fees","190483136","11/07/2018","Fleet Services","Fleet Management","R4400"
"Wolverhampton City Council","http://opendatacommunities.org/id/metropolitan-district-council/wolverhampton","704044","Greenhous Commercials Limited","13712022","231.00","Services - Professional Fees","190483136","11/07/2018","Fleet Services","Fleet Management","R4400"
"Wolverhampton City Council","http://opendatacommunities.org/id/metropolitan-district-council/wolverhampton","704044","Greenhous Commercials Limited","13712022","11.55","Services - Professional Fees","190483136","11/07/2018","Fleet Services","Fleet Management","R4400"
"Wolverhampton City Council","http://opendatacommunities.org/id/metropolitan-district-council/wolverhampton","704044","Greenhous Commercials Limited","13712022","0.72","Services - Professional Fees","190483136","11/07/2018","Fleet Services","Fleet Management","R4400"
"Wolverhampton City Council","http://opendatacommunities.org/id/metropolitan-district-council/wolverhampton","704044","Greenhous Commercials Limited","13712022","14.44","Services - Professional Fees","190483136","11/07/2018","Fleet Services","Fleet Management","R4400"
"Wolverhampton City Council","http://opendatacommunities.org/id/metropolitan-district-council/wolverhampton","704044","Greenhous Commercials Limited","13712022","11.55","Services - Professional Fees","190483136","11/07/2018","Fleet Services","Fleet Management","R4400"
"Wolverhampton City Council","http://opendatacommunities.org/id/metropolitan-district-council/wolverhampton","704044","Greenhous Commercials Limited","13712022","28.88","Services - Professional Fees","190483136","11/07/2018","Fleet Services","Fleet Management","R4400"
"Wolverhampton City Council","http://opendatacommunities.org/id/metropolitan-district-council/wolverhampton","704044","Greenhous Commercials Limited","13712022","8.77","Services - Professional Fees","190483136","11/07/2018","Fleet Services","Fleet Management","R4400"
"Wolverhampton City Council","http://opendatacommunities.org/id/metropolitan-district-council/wolverhampton","704044","Greenhous Commercials Limited","13712022","8.12","Services - Professional Fees","190483136","11/07/2018","Fleet Services","Fleet Management","R4400"
"Wolverhampton City Council","http://opendatacommunities.org/id/metropolitan-district-council/wolverhampton","704044","Greenhous Commercials Limited","13712021","13.38","Services - Professional Fees","190483135","11/07/2018","Fleet Services","Fleet Management","R4400"
"Wolverhampton City Council","http://opendatacommunities.org/id/metropolitan-district-council/wolverhampton","704044","Greenhous Commercials Limited","13712021","86.63","Services - Professional Fees","190483135","11/07/2018","Fleet Services","Fleet Management","R4400"
"Wolverhampton City Council","http://opendatacommunities.org/id/metropolitan-district-council/wolverhampton","704044","Greenhous Commercials Limited","13712021","57.75","Services - Professional Fees","190483135","11/07/2018","Fleet Services","Fleet Management","R4400"
"Wolverhampton City Council","http://opendatacommunities.org/id/metropolitan-district-council/wolverhampton","704044","Greenhous Commercials Limited","13712021","5.45","Services - Professional Fees","190483135","11/07/2018","Fleet Services","Fleet Management","R4400"
"Wolverhampton City Council","http://opendatacommunities.org/id/metropolitan-district-council/wolverhampton","704044","Greenhous Commercials Limited","13712021","231.00","Services - Professional Fees","190483135","11/07/2018","Fleet Services","Fleet Management","R4400"
"Wolverhampton City Council","http://opendatacommunities.org/id/metropolitan-district-council/wolverhampton","704044","Greenhous Commercials Limited","13712021","98.11","Services - Professional Fees","190483135","11/07/2018","Fleet Services","Fleet Management","R4400"
"Wolverhampton City Council","http://opendatacommunities.org/id/metropolitan-district-council/wolverhampton","704044","Greenhous Commercials Limited","13712022","11.55","Services - Professional Fees","190483136","11/07/2018","Fleet Services","Fleet Management","R4400"
"Wolverhampton City Council","http://opendatacommunities.org/id/metropolitan-district-council/wolverhampton","704044","Greenhous Commercials Limited","13712022","28.88","Services - Professional Fees","190483136","11/07/2018","Fleet Services","Fleet Management","R4400"
"Wolverhampton City Council","http://opendatacommunities.org/id/metropolitan-district-council/wolverhampton","704044","Greenhous Commercials Limited","13712022","41.85","Services - Professional Fees","190483136","11/07/2018","Fleet Services","Fleet Management","R4400"
"Wolverhampton City Council","http://opendatacommunities.org/id/metropolitan-district-council/wolverhampton","704044","Greenhous Commercials Limited","13712021","69.25","Services - Professional Fees","190483135","11/07/2018","Fleet Services","Fleet Management","R4400"
"Wolverhampton City Council","http://opendatacommunities.org/id/metropolitan-district-council/wolverhampton","704044","Greenhous Commercials Limited","13712021","50.00","Services - Professional Fees","190483135","11/07/2018","Fleet Services","Fleet Management","R4400"
"Wolverhampton City Council","http://opendatacommunities.org/id/metropolitan-district-council/wolverhampton","704044","Greenhous Commercials Limited","13712021","6.35","Services - Professional Fees","190483135","11/07/2018","Fleet Services","Fleet Management","R4400"
"Wolverhampton City Council","http://opendatacommunities.org/id/metropolitan-district-council/wolverhampton","704044","Greenhous Commercials Limited","13712021","15.00","Services - Professional Fees","190483135","11/07/2018","Fleet Services","Fleet Management","R4400"
"Wolverhampton City Council","http://opendatacommunities.org/id/metropolitan-district-council/wolverhampton","704044","Greenhous Commercials Limited","13712021","14.46","Services - Professional Fees","190483135","11/07/2018","Fleet Services","Fleet Management","R4400"
"Wolverhampton City Council","http://opendatacommunities.org/id/metropolitan-district-council/wolverhampton","704044","Greenhous Commercials Limited","13712021","57.75","Services - Professional Fees","190483135","11/07/2018","Fleet Services","Fleet Management","R4400"
"Wolverhampton City Council","http://opendatacommunities.org/id/metropolitan-district-council/wolverhampton","704044","Greenhous Commercials Limited","13712021","57.75","Services - Professional Fees","190483135","11/07/2018","Fleet Services","Fleet Management","R4400"
"Wolverhampton City Council","http://opendatacommunities.org/id/metropolitan-district-council/wolverhampton","704044","Greenhous Commercials Limited","13712021","46.64","Services - Professional Fees","190483135","11/07/2018","Fleet Services","Fleet Management","R4400"
"Wolverhampton City Council","http://opendatacommunities.org/id/metropolitan-district-council/wolverhampton","704044","Greenhous Commercials Limited","13712021","14.00","Services - Professional Fees","190483135","11/07/2018","Fleet Services","Fleet Management","R4400"
"Wolverhampton City Council","http://opendatacommunities.org/id/metropolitan-district-council/wolverhampton","704044","Greenhous Commercials Limited","13712021","11.55","Services - Professional Fees","190483135","11/07/2018","Fleet Services","Fleet Management","R4400"
"Wolverhampton City Council","http://opendatacommunities.org/id/metropolitan-district-council/wolverhampton","704044","Greenhous Commercials Limited","13712021","54.00","Services - Professional Fees","190483135","11/07/2018","Fleet Services","Fleet Management","R4400"
"Wolverhampton City Council","http://opendatacommunities.org/id/metropolitan-district-council/wolverhampton","704044","Greenhous Commercials Limited","13712021","57.75","Services - Professional Fees","190483135","11/07/2018","Fleet Services","Fleet Management","R4400"
"Wolverhampton City Council","http://opendatacommunities.org/id/metropolitan-district-council/wolverhampton","704044","Greenhous Commercials Limited","13712022","21.63","Services - Professional Fees","190483136","11/07/2018","Fleet Services","Fleet Management","R4400"
"Wolverhampton City Council","http://opendatacommunities.org/id/metropolitan-district-council/wolverhampton","704044","Greenhous Commercials Limited","13712022","57.75","Services - Professional Fees","190483136","11/07/2018","Fleet Services","Fleet Management","R4400"
"Wolverhampton City Council","http://opendatacommunities.org/id/metropolitan-district-council/wolverhampton","704044","Greenhous Commercials Limited","13712022","196.70","Services - Professional Fees","190483136","11/07/2018","Fleet Services","Fleet Management","R4400"
"Wolverhampton City Council","http://opendatacommunities.org/id/metropolitan-district-council/wolverhampton","704044","Greenhous Commercials Limited","13712022","8.27","Services - Professional Fees","190483136","11/07/2018","Fleet Services","Fleet Management","R4400"
"Wolverhampton City Council","http://opendatacommunities.org/id/metropolitan-district-council/wolverhampton","704044","Greenhous Commercials Limited","13712022","11.55","Services - Professional Fees","190483136","11/07/2018","Fleet Services","Fleet Management","R4400"
"Wolverhampton City Council","http://opendatacommunities.org/id/metropolitan-district-council/wolverhampton","704044","Greenhous Commercials Limited","13712022","14.00","Services - Professional Fees","190483136","11/07/2018","Fleet Services","Fleet Management","R4400"
"Wolverhampton City Council","http://opendatacommunities.org/id/metropolitan-district-council/wolverhampton","704044","Greenhous Commercials Limited","13712022","54.00","Services - Professional Fees","190483136","11/07/2018","Fleet Services","Fleet Management","R4400"
"Wolverhampton City Council","http://opendatacommunities.org/id/metropolitan-district-council/wolverhampton","704044","Greenhous Commercials Limited","13712022","23.10","Services - Professional Fees","190483136","11/07/2018","Fleet Services","Fleet Management","R4400"
"Wolverhampton City Council","http://opendatacommunities.org/id/metropolitan-district-council/wolverhampton","704044","Greenhous Commercials Limited","13712022","0.52","Services - Professional Fees","190483136","11/07/2018","Fleet Services","Fleet Management","R4400"
"Wolverhampton City Council","http://opendatacommunities.org/id/metropolitan-district-council/wolverhampton","704044","Greenhous Commercials Limited","13712022","5.78","Services - Professional Fees","190483136","11/07/2018","Fleet Services","Fleet Management","R4400"
"Wolverhampton City Council","http://opendatacommunities.org/id/metropolitan-district-council/wolverhampton","704044","Greenhous Commercials Limited","13712022","37.54","Services - Professional Fees","190483136","11/07/2018","Fleet Services","Fleet Management","R4400"
"Wolverhampton City Council","http://opendatacommunities.org/id/metropolitan-district-council/wolverhampton","704044","Greenhous Commercials Limited","13712022","57.75","Services - Professional Fees","190483136","11/07/2018","Fleet Services","Fleet Management","R4400"
"Wolverhampton City Council","http://opendatacommunities.org/id/metropolitan-district-council/wolverhampton","704044","Greenhous Commercials Limited","13712022","148.18","Services - Professional Fees","190483136","11/07/2018","Fleet Services","Fleet Management","R4400"
"Wolverhampton City Council","http://opendatacommunities.org/id/metropolitan-district-council/wolverhampton","704044","Greenhous Commercials Limited","13712022","7.98","Services - Professional Fees","190483136","11/07/2018","Fleet Services","Fleet Management","R4400"
"Wolverhampton City Council","http://opendatacommunities.org/id/metropolitan-district-council/wolverhampton","704044","Greenhous Commercials Limited","13712022","28.88","Services - Professional Fees","190483136","11/07/2018","Fleet Services","Fleet Management","R4400"
"Wolverhampton City Council","http://opendatacommunities.org/id/metropolitan-district-council/wolverhampton","704044","Greenhous Commercials Limited","13712022","14.44","Services - Professional Fees","190483136","11/07/2018","Fleet Services","Fleet Management","R4400"
"Wolverhampton City Council","http://opendatacommunities.org/id/metropolitan-district-council/wolverhampton","704044","Greenhous Commercials Limited","13712022","17.33","Services - Professional Fees","190483136","11/07/2018","Fleet Services","Fleet Management","R4400"
"Wolverhampton City Council","http://opendatacommunities.org/id/metropolitan-district-council/wolverhampton","704044","Greenhous Commercials Limited","13712022","14.44","Services - Professional Fees","190483136","11/07/2018","Fleet Services","Fleet Management","R4400"
"Wolverhampton City Council","http://opendatacommunities.org/id/metropolitan-district-council/wolverhampton","704044","Greenhous Commercials Limited","13712022","8.48","Services - Professional Fees","190483136","11/07/2018","Fleet Services","Fleet Management","R4400"
"Wolverhampton City Council","http://opendatacommunities.org/id/metropolitan-district-council/wolverhampton","704044","Greenhous Commercials Limited","13712022","20.21","Services - Professional Fees","190483136","11/07/2018","Fleet Services","Fleet Management","R4400"
"Wolverhampton City Council","http://opendatacommunities.org/id/metropolitan-district-council/wolverhampton","704044","Greenhous Commercials Limited","13712022","46.20","Services - Professional Fees","190483136","11/07/2018","Fleet Services","Fleet Management","R4400"
"Wolverhampton City Council","http://opendatacommunities.org/id/metropolitan-district-council/wolverhampton","704044","Greenhous Commercials Limited","13712022","184.00","Services - Professional Fees","190483136","11/07/2018","Fleet Services","Fleet Management","R4400"
"Wolverhampton City Council","http://opendatacommunities.org/id/metropolitan-district-council/wolverhampton","704044","Greenhous Commercials Limited","13712022","27.59","Services - Professional Fees","190483136","11/07/2018","Fleet Services","Fleet Management","R4400"
"Wolverhampton City Council","http://opendatacommunities.org/id/metropolitan-district-council/wolverhampton","704044","Greenhous Commercials Limited","13712022","50.00","Services - Professional Fees","190483136","11/07/2018","Fleet Services","Fleet Management","R4400"
"Wolverhampton City Council","http://opendatacommunities.org/id/metropolitan-district-council/wolverhampton","704044","Greenhous Commercials Limited","13712208","15.00","MOT & HGV Tests","190483140","11/07/2018","Fleet Services","Fleet Management","R3005"
"Wolverhampton City Council","http://opendatacommunities.org/id/metropolitan-district-council/wolverhampton","704044","Greenhous Commercials Limited","13712208","49.00","MOT & HGV Tests","190483140","11/07/2018","Fleet Services","Fleet Management","R3005"
"Wolverhampton City Council","http://opendatacommunities.org/id/metropolitan-district-council/wolverhampton","704044","Greenhous Commercials Limited","13713851","65.00","Services - Professional Fees","190490200","27/07/2018","Fleet Services","Fleet Management","R4400"
"Wolverhampton City Council","http://opendatacommunities.org/id/metropolitan-district-council/wolverhampton","704044","Greenhous Commercials Limited","13713851","15.00","Services - Professional Fees","190490200","27/07/2018","Fleet Services","Fleet Management","R4400"
"Wolverhampton City Council","http://opendatacommunities.org/id/metropolitan-district-council/wolverhampton","704044","Greenhous Commercials Limited","13093429","4.62","Equipment - Purchase","190481456","06/07/2018","Fleet Services","Fleet Management","R4000"
"Wolverhampton City Council","http://opendatacommunities.org/id/metropolitan-district-council/wolverhampton","704044","Greenhous Commercials Limited","13713229","15.00","Services - Professional Fees","190486243","23/07/2018","Fleet Services","Fleet Management","R4400"
"Wolverhampton City Council","http://opendatacommunities.org/id/metropolitan-district-council/wolverhampton","704044","Greenhous Commercials Limited","13713229","45.00","Services - Professional Fees","190486243","23/07/2018","Fleet Services","Fleet Management","R4400"
"Wolverhampton City Council","http://opendatacommunities.org/id/metropolitan-district-council/wolverhampton","704044","Greenhous Commercials Limited","13710913","91.00","MOT & HGV Tests","190486237","23/07/2018","Fleet Services","Fleet Management","R3005"
"Wolverhampton City Council","http://opendatacommunities.org/id/metropolitan-district-council/wolverhampton","704044","Greenhous Commercials Limited","13710913","35.00","MOT & HGV Tests","190486237","23/07/2018","Fleet Services","Fleet Management","R3005"
"Wolverhampton City Council","http://opendatacommunities.org/id/metropolitan-district-council/wolverhampton","704044","Greenhous Commercials Limited","13710915","113.00","MOT & HGV Tests","190486238","23/07/2018","Fleet Services","Fleet Management","R3005"
"Wolverhampton City Council","http://opendatacommunities.org/id/metropolitan-district-council/wolverhampton","704044","Greenhous Commercials Limited","13710915","35.00","MOT & HGV Tests","190486238","23/07/2018","Fleet Services","Fleet Management","R3005"
"Wolverhampton City Council","http://opendatacommunities.org/id/metropolitan-district-council/wolverhampton","704055","Ground Investigation & Piling Limited","34514","536.64","Construction and Conversion","130220508","23/07/2018","-","Bilston Urban Village","C1100"
"Wolverhampton City Council","http://opendatacommunities.org/id/metropolitan-district-council/wolverhampton","704061","Guest Motors Limited","13518695","348.00","Services - Professional Fees","190480835","04/07/2018","Fleet Services","Fleet Management","R4400"
"Wolverhampton City Council","http://opendatacommunities.org/id/metropolitan-district-council/wolverhampton","704061","Guest Motors Limited","13518695","425.01","Services - Professional Fees","190480835","04/07/2018","Fleet Services","Fleet Management","R4400"
"Wolverhampton City Council","http://opendatacommunities.org/id/metropolitan-district-council/wolverhampton","704061","Guest Motors Limited","13042877","3.20","Equipment - Purchase","190490195","27/07/2018","Fleet Services","Fleet Management","R4000"
"Wolverhampton City Council","http://opendatacommunities.org/id/metropolitan-district-council/wolverhampton","704061","Guest Motors Limited","13042877","2.05","Equipment - Purchase","190490195","27/07/2018","Fleet Services","Fleet Management","R4000"
"Wolverhampton City Council","http://opendatacommunities.org/id/metropolitan-district-council/wolverhampton","704061","Guest Motors Limited","13042247","28.89","Equipment - Purchase","190483122","11/07/2018","Fleet Services","Fleet Management","R4000"
"Wolverhampton City Council","http://opendatacommunities.org/id/metropolitan-district-council/wolverhampton","704061","Guest Motors Limited","13042247","99.90","Equipment - Purchase","190483122","11/07/2018","Fleet Services","Fleet Management","R4000"
"Wolverhampton City Council","http://opendatacommunities.org/id/metropolitan-district-council/wolverhampton","704061","Guest Motors Limited","13042468","75.00","Equipment - Purchase","190486225","23/07/2018","Fleet Services","Fleet Management","R4000"
"Wolverhampton City Council","http://opendatacommunities.org/id/metropolitan-district-council/wolverhampton","704061","Guest Motors Limited","13042465","36.29","Equipment - Purchase","190483123","11/07/2018","Fleet Services","Fleet Management","R4000"
"Wolverhampton City Council","http://opendatacommunities.org/id/metropolitan-district-council/wolverhampton","704067","Gunnebo Security UK Limited","20039999","374.62","R&M - Departmental planned (external)","130220247","11/07/2018","Maintenance Programme","Civic Centre Repairs & Maintenance","R2001"
"Wolverhampton City Council","http://opendatacommunities.org/id/metropolitan-district-council/wolverhampton","704074","H & G Ash Roadmarkings Limited","9630","496.00","R&M - Departmental response (external)","130223170","25/07/2018","Parking Services","Short Stay - Fold Street","R2003"
"Wolverhampton City Council","http://opendatacommunities.org/id/metropolitan-district-council/wolverhampton","704079","H Jenkinson & Company Ltd","SINV00809646","636.86","Furniture","130220760","04/07/2018","Early Intervention","EIP Locality 1 - Eastfields","R4004"
"Wolverhampton City Council","http://opendatacommunities.org/id/metropolitan-district-council/wolverhampton","704079","H Jenkinson & Company Ltd","SINV00811322","44.00","Equipment - Purchase","130222344","18/07/2018","Early Intervention","EIP Locality 1 - Eastfields","R4000"
"Wolverhampton City Council","http://opendatacommunities.org/id/metropolitan-district-council/wolverhampton","704079","H Jenkinson & Company Ltd","SINV00803534","15,509.00","Plant, Equipment, Machinery & Computer Hardware","130220638","04/07/2018","-","Future Spaces","C3000"
"Wolverhampton City Council","http://opendatacommunities.org/id/metropolitan-district-council/wolverhampton","704079","H Jenkinson & Company Ltd","SINV00811320","123.56","Furniture","130222342","13/07/2018","Adult Education","The Maltings","R4004"
"Wolverhampton City Council","http://opendatacommunities.org/id/metropolitan-district-council/wolverhampton","704079","H Jenkinson & Company Ltd","SINV00812383","74.97","Furniture","130223553","25/07/2018","Skills","IMPACT","R4004"
"Wolverhampton City Council","http://opendatacommunities.org/id/metropolitan-district-council/wolverhampton","704079","H Jenkinson & Company Ltd","SINV00810641","20,071.80","Plant, Equipment, Machinery & Computer Hardware","130221470","11/07/2018","-","Future Spaces","C3000"
"Wolverhampton City Council","http://opendatacommunities.org/id/metropolitan-district-council/wolverhampton","704079","H Jenkinson & Company Ltd","SINV00811321","286.30","Furniture","130222343","23/07/2018","Adult Education","Service Wide","R4004"
"Wolverhampton City Council","http://opendatacommunities.org/id/metropolitan-district-council/wolverhampton","704097","Hags-Smp Limited Rss Playmakers","058741","114.00","Equipment - R & M","130219723","11/07/2018","Environmental Maintenance","Parks - East Area Management","R4003"
"Wolverhampton City Council","http://opendatacommunities.org/id/metropolitan-district-council/wolverhampton","704097","Hags-Smp Limited Rss Playmakers","058862","37.50","Equipment - R & M","130221287","18/07/2018","Environmental Maintenance","Parks - South West Area Management","R4003"
"Wolverhampton City Council","http://opendatacommunities.org/id/metropolitan-district-council/wolverhampton","704097","Hags-Smp Limited Rss Playmakers","058986","22.80","Equipment - R & M","130221294","18/07/2018","Environmental Maintenance","Parks - East Area Management","R4003"
"Wolverhampton City Council","http://opendatacommunities.org/id/metropolitan-district-council/wolverhampton","704097","Hags-Smp Limited Rss Playmakers","058984","43.71","Equipment - R & M","130221292","18/07/2018","Environmental Maintenance","Parks - East Area Management","R4003"
"Wolverhampton City Council","http://opendatacommunities.org/id/metropolitan-district-council/wolverhampton","704097","Hags-Smp Limited Rss Playmakers","058985","31.40","Equipment - R & M","130221293","18/07/2018","Environmental Maintenance","Parks - East Area Management","R4003"
"Wolverhampton City Council","http://opendatacommunities.org/id/metropolitan-district-council/wolverhampton","704097","Hags-Smp Limited Rss Playmakers","058983","352.50","Equipment - R & M","130221291","18/07/2018","Environmental Maintenance","Parks - East Area Management","R4003"
"Wolverhampton City Council","http://opendatacommunities.org/id/metropolitan-district-council/wolverhampton","704097","Hags-Smp Limited Rss Playmakers","058740","114.00","Equipment - R & M","130219722","11/07/2018","Environmental Maintenance","Parks - East Area Management","R4003"
"Wolverhampton City Council","http://opendatacommunities.org/id/metropolitan-district-council/wolverhampton","704097","Hags-Smp Limited Rss Playmakers","058947","1,277.14","Equipment - R & M","130221289","18/07/2018","Environmental Maintenance","Parks - South West Area Management","R4003"
"Wolverhampton City Council","http://opendatacommunities.org/id/metropolitan-district-council/wolverhampton","704097","Hags-Smp Limited Rss Playmakers","058863","175.00","Equipment - R & M","130221288","18/07/2018","Environmental Maintenance","Parks - East Area Management","R4003"
"Wolverhampton City Council","http://opendatacommunities.org/id/metropolitan-district-council/wolverhampton","704097","Hags-Smp Limited Rss Playmakers","058826","115.00","Equipment - R & M","130219726","11/07/2018","Environmental Maintenance","Parks - East Area Management","R4003"
"Wolverhampton City Council","http://opendatacommunities.org/id/metropolitan-district-council/wolverhampton","704097","Hags-Smp Limited Rss Playmakers","058742","11.76","Equipment - R & M","130219724","11/07/2018","Environmental Maintenance","Parks - South West Area Management","R4003"
"Wolverhampton City Council","http://opendatacommunities.org/id/metropolitan-district-council/wolverhampton","704097","Hags-Smp Limited Rss Playmakers","058739","11.40","Equipment - R & M","130219721","11/07/2018","Environmental Maintenance","Parks - East Area Management","R4003"
"Wolverhampton City Council","http://opendatacommunities.org/id/metropolitan-district-council/wolverhampton","704097","Hags-Smp Limited Rss Playmakers","058747","95.00","Equipment - R & M","130219725","11/07/2018","Environmental Maintenance","Parks - East Area Management","R4003"
"Wolverhampton City Council","http://opendatacommunities.org/id/metropolitan-district-council/wolverhampton","704097","Hags-Smp Limited Rss Playmakers","058989","38.75","Equipment - R & M","130221296","18/07/2018","Environmental Maintenance","Parks - South West Area Management","R4003"
"Wolverhampton City Council","http://opendatacommunities.org/id/metropolitan-district-council/wolverhampton","704097","Hags-Smp Limited Rss Playmakers","058948","788.50","Equipment - R & M","130221290","18/07/2018","Environmental Maintenance","Parks - East Area Management","R4003"
"Wolverhampton City Council","http://opendatacommunities.org/id/metropolitan-district-council/wolverhampton","704097","Hags-Smp Limited Rss Playmakers","058987","115.00","Equipment - R & M","130221295","18/07/2018","Environmental Maintenance","Parks - East Area Management","R4003"
"Wolverhampton City Council","http://opendatacommunities.org/id/metropolitan-district-council/wolverhampton","704132","Harold L. Smith Transmissions Limited","0000254491","807.00","Equipment - Purchase","190481443","06/07/2018","Fleet Services","Fleet Management","R4000"
"Wolverhampton City Council","http://opendatacommunities.org/id/metropolitan-district-council/wolverhampton","704132","Harold L. Smith Transmissions Limited","0000255921","110.00","Services - Professional Fees","190486210","23/07/2018","Fleet Services","Fleet Management","R4400"
"Wolverhampton City Council","http://opendatacommunities.org/id/metropolitan-district-council/wolverhampton","704132","Harold L. Smith Transmissions Limited","0000255981","3,450.00","Services - Professional Fees","190480824","04/07/2018","Fleet Services","Fleet Management","R4400"
"Wolverhampton City Council","http://opendatacommunities.org/id/metropolitan-district-council/wolverhampton","704132","Harold L. Smith Transmissions Limited","0000255691","262.00","Equipment - Purchase","190486209","23/07/2018","Fleet Services","Fleet Management","R4000"
"Wolverhampton City Council","http://opendatacommunities.org/id/metropolitan-district-council/wolverhampton","704132","Harold L. Smith Transmissions Limited","0000255637","250.00","Equipment - Purchase","190481444","06/07/2018","Fleet Services","Fleet Management","R4000"
"Wolverhampton City Council","http://opendatacommunities.org/id/metropolitan-district-council/wolverhampton","704132","Harold L. Smith Transmissions Limited","0000256589","262.00","Equipment - Purchase","190484313","13/07/2018","Fleet Services","Fleet Management","R4000"
"Wolverhampton City Council","http://opendatacommunities.org/id/metropolitan-district-council/wolverhampton","704144","Hartshorne Motor Services Limited","1338886-01","2.28","Equipment - Purchase","190488079","25/07/2018","Fleet Services","Fleet Management","R4000"
"Wolverhampton City Council","http://opendatacommunities.org/id/metropolitan-district-council/wolverhampton","704144","Hartshorne Motor Services Limited","1338886-01","1.16","Equipment - Purchase","190488079","25/07/2018","Fleet Services","Fleet Management","R4000"
"Wolverhampton City Council","http://opendatacommunities.org/id/metropolitan-district-council/wolverhampton","704144","Hartshorne Motor Services Limited","1338886-01","66.19","Equipment - Purchase","190488079","25/07/2018","Fleet Services","Fleet Management","R4000"
"Wolverhampton City Council","http://opendatacommunities.org/id/metropolitan-district-council/wolverhampton","704144","Hartshorne Motor Services Limited","2225878-01","1,950.00","Services - Professional Fees","190483156","11/07/2018","Fleet Services","Fleet Management","R4400"
"Wolverhampton City Council","http://opendatacommunities.org/id/metropolitan-district-council/wolverhampton","704144","Hartshorne Motor Services Limited","2225878-01","41.11","Services - Professional Fees","190483156","11/07/2018","Fleet Services","Fleet Management","R4400"
"Wolverhampton City Council","http://opendatacommunities.org/id/metropolitan-district-council/wolverhampton","704144","Hartshorne Motor Services Limited","2225878-01","4,755.78","Services - Professional Fees","190483156","11/07/2018","Fleet Services","Fleet Management","R4400"
"Wolverhampton City Council","http://opendatacommunities.org/id/metropolitan-district-council/wolverhampton","704205","Heath Lambert Limited (Client Money)","32502248","34,069.28","Insurance - General","190484280","13/07/2018","Audit Services","Legal Liability","R4962"
"Wolverhampton City Council","http://opendatacommunities.org/id/metropolitan-district-council/wolverhampton","704205","Heath Lambert Limited (Client Money)","Ref: 32502080","5,600.00","Insurance - General","190485614","18/07/2018","Audit Services","Insurance Services","R4962"
"Wolverhampton City Council","http://opendatacommunities.org/id/metropolitan-district-council/wolverhampton","704205","Heath Lambert Limited (Client Money)","32501555","22,640.80","Insurance - General","190484281","13/07/2018","Audit Services","Property Insurances","R4962"
"Wolverhampton City Council","http://opendatacommunities.org/id/metropolitan-district-council/wolverhampton","704205","Heath Lambert Limited (Client Money)","32501842","198,036.16","Insurance - General","190484279","13/07/2018","Audit Services","Legal Liability","R4962"
"Wolverhampton City Council","http://opendatacommunities.org/id/metropolitan-district-council/wolverhampton","704205","Heath Lambert Limited (Client Money)","32501304","414,953.24","Insurance - General","190484278","13/07/2018","Audit Services","Property Insurances","R4962"
"Wolverhampton City Council","http://opendatacommunities.org/id/metropolitan-district-council/wolverhampton","704266","Hills Coaches Limited","33024","820.00","Client Transport","130220509","04/07/2018","School Planning & Resources","Towers Outdoor Education Centre","R3042"
"Wolverhampton City Council","http://opendatacommunities.org/id/metropolitan-district-council/wolverhampton","704266","Hills Coaches Limited","32988","225.00","Client Transport","130219387","11/07/2018","Adult Education","Language Studies Delivery Area","R3042"
"Wolverhampton City Council","http://opendatacommunities.org/id/metropolitan-district-council/wolverhampton","704266","Hills Coaches Limited","32922","525.00","Education trips, Holidays, Outings & Activities","130221588","06/07/2018","Schools","The King�s Church of England School","R4970"
"Wolverhampton City Council","http://opendatacommunities.org/id/metropolitan-district-council/wolverhampton","704266","Hills Coaches Limited","33102","2,400.00","Client Transport","130221471","23/07/2018","Special Educational Needs","Special - Transport","R3042"
"Wolverhampton City Council","http://opendatacommunities.org/id/metropolitan-district-council/wolverhampton","704266","Hills Coaches Limited","32928","860.00","Client Transport","130218897","18/07/2018","School Planning & Resources","Towers Outdoor Education Centre","R3042"
"Wolverhampton City Council","http://opendatacommunities.org/id/metropolitan-district-council/wolverhampton","704266","Hills Coaches Limited","33025","900.00","Client Transport","130220510","18/07/2018","School Planning & Resources","Towers Outdoor Education Centre","R3042"
"Wolverhampton City Council","http://opendatacommunities.org/id/metropolitan-district-council/wolverhampton","704270","Hilton Hall Community Association","PO16084901","50.00","Room Hire","130223027","25/07/2018","Community Safety","SWP - Infrastructure","R2201"
"Wolverhampton City Council","http://opendatacommunities.org/id/metropolitan-district-council/wolverhampton","704271","Hilton Main Construction Limited","32932","11,878.80","R&M - Departmental response (external)","130221783","25/07/2018","Highways Maintenance","Patching","R2003"
"Wolverhampton City Council","http://opendatacommunities.org/id/metropolitan-district-council/wolverhampton","704271","Hilton Main Construction Limited","32876","1,515.00","R&M - Departmental planned (external)","130220899","25/07/2018","Street Lighting","St Lighting Ext Recharges","R2001"
"Wolverhampton City Council","http://opendatacommunities.org/id/metropolitan-district-council/wolverhampton","704271","Hilton Main Construction Limited","32838","1,750.00","R&M - Departmental response (external)","130219889","13/07/2018","Facilities Management","Management of Vacant Properties","R2003"
"Wolverhampton City Council","http://opendatacommunities.org/id/metropolitan-district-council/wolverhampton","704271","Hilton Main Construction Limited","32859","9,927.54","Construction and Conversion","130220377","18/07/2018","-","Integrated Transport","C1100"
"Wolverhampton City Council","http://opendatacommunities.org/id/metropolitan-district-council/wolverhampton","704271","Hilton Main Construction Limited","32839","614.45","Construction and Conversion","130219890","13/07/2018","-","GF - Accessing Growth Fund","C1100"
"Wolverhampton City Council","http://opendatacommunities.org/id/metropolitan-district-council/wolverhampton","704271","Hilton Main Construction Limited","32843","1,950.00","R&M - Departmental planned (external)","130219894","13/07/2018","Environmental Maintenance","Street Cleansing Overheads","R2001"
"Wolverhampton City Council","http://opendatacommunities.org/id/metropolitan-district-council/wolverhampton","704271","Hilton Main Construction Limited","32963","381.52","R&M - Departmental response (external)","130221788","25/07/2018","Highways Maintenance","Planned Highways Maintenance","R2003"
"Wolverhampton City Council","http://opendatacommunities.org/id/metropolitan-district-council/wolverhampton","704271","Hilton Main Construction Limited","32919","12,178.85","R&M - Departmental response (external)","130221775","25/07/2018","Highways Maintenance","Planned Highways Maintenance","R2003"
"Wolverhampton City Council","http://opendatacommunities.org/id/metropolitan-district-council/wolverhampton","704271","Hilton Main Construction Limited","32900","4,259.67","R&M - Departmental response (external)","130221152","25/07/2018","Street Lighting","St Lighting Ext Recharges","R2003"
"Wolverhampton City Council","http://opendatacommunities.org/id/metropolitan-district-council/wolverhampton","704271","Hilton Main Construction Limited","32834","150.36","Services - Professional Fees","190483170","11/07/2018","Fleet Services","Fleet Management","R4400"
"Wolverhampton City Council","http://opendatacommunities.org/id/metropolitan-district-council/wolverhampton","704271","Hilton Main Construction Limited","32927","1,740.00","Hire of Vehicles","190486265","23/07/2018","Fleet Services","Fleet Management","R3200"
"Wolverhampton City Council","http://opendatacommunities.org/id/metropolitan-district-council/wolverhampton","704271","Hilton Main Construction Limited","32840","2,646.00","R&M - Departmental response (external)","130219891","13/07/2018","Environmental Maintenance","Street Cleansing Overheads","R2003"
"Wolverhampton City Council","http://opendatacommunities.org/id/metropolitan-district-council/wolverhampton","704271","Hilton Main Construction Limited","32875","1,800.00","R&M - Departmental planned (external)","130220898","25/07/2018","Street Lighting","St Lighting Ext Recharges","R2001"
"Wolverhampton City Council","http://opendatacommunities.org/id/metropolitan-district-council/wolverhampton","704271","Hilton Main Construction Limited","32965","11,281.25","R&M - Departmental response (external)","130221789","25/07/2018","Highways Maintenance","Planned Highways Maintenance","R2003"
"Wolverhampton City Council","http://opendatacommunities.org/id/metropolitan-district-council/wolverhampton","704271","Hilton Main Construction Limited","32842","8,128.00","Construction and Conversion","130219893","13/07/2018","-","GF - Maintenance of Non Highway Structures","C1100"
"Wolverhampton City Council","http://opendatacommunities.org/id/metropolitan-district-council/wolverhampton","704271","Hilton Main Construction Limited","32841","2,500.00","R&M - Departmental response (external)","130219892","13/07/2018","Street Lighting","St Lighting Ext Recharges","R2003"
"Wolverhampton City Council","http://opendatacommunities.org/id/metropolitan-district-council/wolverhampton","704271","Hilton Main Construction Limited","32945","5,094.00","R&M - Departmental planned (external)","130221785","25/07/2018","Parking Services","Long Stay - Broad St.","R2001"
"Wolverhampton City Council","http://opendatacommunities.org/id/metropolitan-district-council/wolverhampton","704271","Hilton Main Construction Limited","32889","1,129.96","R&M - Departmental response (external)","130221151","25/07/2018","Highways Maintenance","Planned Highways Maintenance","R2003"
"Wolverhampton City Council","http://opendatacommunities.org/id/metropolitan-district-council/wolverhampton","704271","Hilton Main Construction Limited","32899","120.00","R&M - Departmental planned (external)","130221770","25/07/2018","Facilities Management","Parkfields Office Accomodation","R2001"
"Wolverhampton City Council","http://opendatacommunities.org/id/metropolitan-district-council/wolverhampton","704271","Hilton Main Construction Limited","32926","1,740.00","Hire of Vehicles","190486264","23/07/2018","Fleet Services","Fleet Management","R3200"
"Wolverhampton City Council","http://opendatacommunities.org/id/metropolitan-district-council/wolverhampton","704289","HMCTS","JHEINGA01","385.00","Services - Fees and Charges","190490954","27/07/2018","Safeguarding","Court of Protection, Funerals and Protection of Property","R4401"
"Wolverhampton City Council","http://opendatacommunities.org/id/metropolitan-district-council/wolverhampton","704289","HMCTS","Baker0002","400.00","Services - Fees and Charges","190475661","04/07/2018","Safeguarding","Court of Protection, Funerals and Protection of Property","R4401"
"Wolverhampton City Council","http://opendatacommunities.org/id/metropolitan-district-council/wolverhampton","704289","HMCTS","Reid0001","400.00","Services - Fees and Charges","190480933","06/07/2018","Safeguarding","Court of Protection, Funerals and Protection of Property","R4401"
"Wolverhampton City Council","http://opendatacommunities.org/id/metropolitan-district-council/wolverhampton","704318","Homepoint Estate Agents","5005","550.00","No Recourse to Public Funds","130220511","11/07/2018","Child Protection","CIN/CP Social Work Unit - Area 5","R6314"
"Wolverhampton City Council","http://opendatacommunities.org/id/metropolitan-district-council/wolverhampton","704328","Horizon Care & Education Group Limited","7998","-6,825.00","TPP - Independent Schools","130222637","27/07/2018","Special Educational Needs","SEN Education OOC","R5036"
"Wolverhampton City Council","http://opendatacommunities.org/id/metropolitan-district-council/wolverhampton","704328","Horizon Care & Education Group Limited","P177795 22071820180702","26,408.57","TPP - Residential Care - Long Term","190475363","04/07/2018","Looked After Children","Out of City Placements","R5400"
"Wolverhampton City Council","http://opendatacommunities.org/id/metropolitan-district-council/wolverhampton","704328","Horizon Care & Education Group Limited","9749","6,695.00","TPP - Independent Schools","130222981","27/07/2018","Special Educational Needs","SEN Education OOC","R5036"
"Wolverhampton City Council","http://opendatacommunities.org/id/metropolitan-district-council/wolverhampton","704328","Horizon Care & Education Group Limited","10504","13,644.34","TPP - Independent Schools","130221640","27/07/2018","Special Educational Needs","SEN Education OOC","R5036"
"Wolverhampton City Council","http://opendatacommunities.org/id/metropolitan-district-council/wolverhampton","704328","Horizon Care & Education Group Limited","P179103 22071820180712","19,844.43","TPP - Residential Care - Long Term","190484346","13/07/2018","Looked After Children","Out of City Placements","R5400"
"Wolverhampton City Council","http://opendatacommunities.org/id/metropolitan-district-council/wolverhampton","704328","Horizon Care & Education Group Limited","10589","6,312.00","TPP - Independent Schools","130221297","11/07/2018","Special Educational Needs","SEN Education OOC","R5036"
"Wolverhampton City Council","http://opendatacommunities.org/id/metropolitan-district-council/wolverhampton","704380","Hydrop E.C.S.","IV20673","1,400.00","Training Expenses","130221641","11/07/2018","Public Service Reform","Centralised Training","R1650"
"Wolverhampton City Council","http://opendatacommunities.org/id/metropolitan-district-council/wolverhampton","704426","Idox Software Limited","111058","23,718.00","Computing - Maint Agreements","130219114","04/07/2018","ICTS","Strategic ICTS (ICT Service Budget)","R4534"
"Wolverhampton City Council","http://opendatacommunities.org/id/metropolitan-district-council/wolverhampton","704426","Idox Software Limited","7021431","3,053.60","Training Expenses","130218898","04/07/2018","Public Service Reform","Local Government Elections","R1650"
"Wolverhampton City Council","http://opendatacommunities.org/id/metropolitan-district-council/wolverhampton","704463","Inclusive Technology Limited","160472","97.50","Equipment - Purchase","130219218","04/07/2018","Specialist Support","Head of Service Specialist Intensive Support Service","R4000"
"Wolverhampton City Council","http://opendatacommunities.org/id/metropolitan-district-council/wolverhampton","704469","Indespension Limited","2398770","22.25","Equipment - Purchase","190490210","27/07/2018","Fleet Services","Fleet Management","R4000"
"Wolverhampton City Council","http://opendatacommunities.org/id/metropolitan-district-council/wolverhampton","704469","Indespension Limited","2398770","30.20","Equipment - Purchase","190490210","27/07/2018","Fleet Services","Fleet Management","R4000"
"Wolverhampton City Council","http://opendatacommunities.org/id/metropolitan-district-council/wolverhampton","704469","Indespension Limited","2394939","15.50","Equipment - Purchase","190483157","11/07/2018","Fleet Services","Fleet Management","R4000"
"Wolverhampton City Council","http://opendatacommunities.org/id/metropolitan-district-council/wolverhampton","704469","Indespension Limited","2394939","8.95","Equipment - Purchase","190483157","11/07/2018","Fleet Services","Fleet Management","R4000"
"Wolverhampton City Council","http://opendatacommunities.org/id/metropolitan-district-council/wolverhampton","704469","Indespension Limited","2396208","14.44","Equipment - Purchase","190486258","23/07/2018","Fleet Services","Fleet Management","R4000"
"Wolverhampton City Council","http://opendatacommunities.org/id/metropolitan-district-council/wolverhampton","704473","Industrial Equipment+Constructionltd","10170","290.00","R&M - Departmental planned (internal)","130220512","04/07/2018","Maintenance Programme","Civic Centre Repairs & Maintenance","R2000"
"Wolverhampton City Council","http://opendatacommunities.org/id/metropolitan-district-council/wolverhampton","704474","Industrial Scales (UK) Limited","C147057","36.00","Equipment - R & M","130220513","04/07/2018","Learning Disability Provider","Duke Street Bungalows","R4003"
"Wolverhampton City Council","http://opendatacommunities.org/id/metropolitan-district-council/wolverhampton","704474","Industrial Scales (UK) Limited","C147057","10.00","Equipment - R & M","130220513","04/07/2018","Learning Disability Provider","Duke Street Bungalows","R4003"
"Wolverhampton City Council","http://opendatacommunities.org/id/metropolitan-district-council/wolverhampton","704488","Initial Projects Limited T/A Enitial","78855","225.00","Services - Professional Fees","130220762","23/07/2018","Public Protection","Contaminated Land","R4400"
"Wolverhampton City Council","http://opendatacommunities.org/id/metropolitan-district-council/wolverhampton","704488","Initial Projects Limited T/A Enitial","78906","528.00","Construction and Conversion","130221154","25/07/2018","-","Bowman�s Harbour - Former Landfill Sites","C1100"
"Wolverhampton City Council","http://opendatacommunities.org/id/metropolitan-district-council/wolverhampton","704488","Initial Projects Limited T/A Enitial","78479","250.00","Construction and Conversion","130217608","06/07/2018","-","Bowman�s Harbour - Former Landfill Sites","C1100"
"Wolverhampton City Council","http://opendatacommunities.org/id/metropolitan-district-council/wolverhampton","704489","Initial Washroom Hygiene Ltd(Solutions)","32769963","20.13","Cleaning Supplies and Materials","130220250","06/07/2018","Bereavement Services","Crematorium","R2705"
"Wolverhampton City Council","http://opendatacommunities.org/id/metropolitan-district-council/wolverhampton","704489","Initial Washroom Hygiene Ltd(Solutions)","32676695","63.19","Cleaning Supplies and Materials","130209990","04/07/2018","Facilities Management","Hickman Avenue Depot","R2705"
"Wolverhampton City Council","http://opendatacommunities.org/id/metropolitan-district-council/wolverhampton","704489","Initial Washroom Hygiene Ltd(Solutions)","32769965","63.19","Cleaning Supplies and Materials","130220252","06/07/2018","Facilities Management","Hickman Avenue Depot","R2705"
"Wolverhampton City Council","http://opendatacommunities.org/id/metropolitan-district-council/wolverhampton","704489","Initial Washroom Hygiene Ltd(Solutions)","32769964","73.53","Cleaning Supplies and Materials","130220251","06/07/2018","Facilities Management","Culwell Street Depot","R2705"
"Wolverhampton City Council","http://opendatacommunities.org/id/metropolitan-district-council/wolverhampton","704510","Instarmac Group PLC","640126","1,912.00","Materials","130222000","11/07/2018","Highways Maintenance","Patching","R4007"
"Wolverhampton City Council","http://opendatacommunities.org/id/metropolitan-district-council/wolverhampton","704524","Integrated Water Services Limited","CD200087612","1,092.00","R&M - Departmental planned (external)","130219228","06/07/2018","Maintenance Programme","Civic Centre Repairs & Maintenance","R2001"
"Wolverhampton City Council","http://opendatacommunities.org/id/metropolitan-district-council/wolverhampton","704524","Integrated Water Services Limited","CD200076361","420.00","R&M - Departmental planned (external)","130219223","13/07/2018","Maintenance Programme","Centralised R&M","R2001"
"Wolverhampton City Council","http://opendatacommunities.org/id/metropolitan-district-council/wolverhampton","704524","Integrated Water Services Limited","CD200089452","35.00","R&M - Departmental planned (external)","130220764","25/07/2018","Maintenance Programme","Centralised R&M","R2001"
"Wolverhampton City Council","http://opendatacommunities.org/id/metropolitan-district-council/wolverhampton","704524","Integrated Water Services Limited","CD200076325","5,719.34","R&M - Departmental planned (external)","130219222","06/07/2018","Maintenance Programme","Centralised R&M","R2001"
"Wolverhampton City Council","http://opendatacommunities.org/id/metropolitan-district-council/wolverhampton","704524","Integrated Water Services Limited","CD200080628","347.82","R&M - Departmental planned (external)","130211574","13/07/2018","Maintenance Programme","Centralised R&M","R2001"
"Wolverhampton City Council","http://opendatacommunities.org/id/metropolitan-district-council/wolverhampton","704524","Integrated Water Services Limited","CD200081276","7,980.56","R&M - Departmental planned (external)","130219224","06/07/2018","Maintenance Programme","Centralised R&M","R2001"
"Wolverhampton City Council","http://opendatacommunities.org/id/metropolitan-district-council/wolverhampton","704524","Integrated Water Services Limited","CD200076046","347.82","R&M - Departmental planned (external)","130219221","13/07/2018","Maintenance Programme","Centralised R&M","R2001"
"Wolverhampton City Council","http://opendatacommunities.org/id/metropolitan-district-council/wolverhampton","704524","Integrated Water Services Limited","CD200087252","540.00","R&M - Departmental planned (external)","130219227","06/07/2018","Maintenance Programme","Centralised R&M","R2001"
"Wolverhampton City Council","http://opendatacommunities.org/id/metropolitan-district-council/wolverhampton","704524","Integrated Water Services Limited","CD200087258","306.75","R&M - Departmental planned (external)","130218365","13/07/2018","Maintenance Programme","Centralised R&M","R2001"
"Wolverhampton City Council","http://opendatacommunities.org/id/metropolitan-district-council/wolverhampton","704524","Integrated Water Services Limited","CD200082201","541.65","R&M - Departmental planned (external)","130219226","13/07/2018","Maintenance Programme","Centralised R&M","R2001"
"Wolverhampton City Council","http://opendatacommunities.org/id/metropolitan-district-council/wolverhampton","704537","Interclass PLC","11039","19,607.57","Construction and Conversion","130223171","25/07/2018","-","Universal Infant Free School Meals","C1100"
"Wolverhampton City Council","http://opendatacommunities.org/id/metropolitan-district-council/wolverhampton","704545","Interwaste Municipal Limitedc/O Fleet Ca","27547","85.00","Equipment - Purchase","190481463","06/07/2018","Fleet Services","Fleet Management","R4000"
"Wolverhampton City Council","http://opendatacommunities.org/id/metropolitan-district-council/wolverhampton","704545","Interwaste Municipal Limitedc/O Fleet Ca","27703","78.40","Equipment - Purchase","190483168","11/07/2018","Fleet Services","Fleet Management","R4000"
"Wolverhampton City Council","http://opendatacommunities.org/id/metropolitan-district-council/wolverhampton","704545","Interwaste Municipal Limitedc/O Fleet Ca","27703","6.06","Equipment - Purchase","190483168","11/07/2018","Fleet Services","Fleet Management","R4000"
"Wolverhampton City Council","http://opendatacommunities.org/id/metropolitan-district-council/wolverhampton","704545","Interwaste Municipal Limitedc/O Fleet Ca","27443","261.72","Equipment - Purchase","190480840","04/07/2018","Fleet Services","Fleet Management","R4000"
"Wolverhampton City Council","http://opendatacommunities.org/id/metropolitan-district-council/wolverhampton","704545","Interwaste Municipal Limitedc/O Fleet Ca","27443","71.28","Equipment - Purchase","190480840","04/07/2018","Fleet Services","Fleet Management","R4000"
"Wolverhampton City Council","http://opendatacommunities.org/id/metropolitan-district-council/wolverhampton","704545","Interwaste Municipal Limitedc/O Fleet Ca","27443","35.12","Equipment - Purchase","190480840","04/07/2018","Fleet Services","Fleet Management","R4000"
"Wolverhampton City Council","http://opendatacommunities.org/id/metropolitan-district-council/wolverhampton","704545","Interwaste Municipal Limitedc/O Fleet Ca","27443","30.48","Equipment - Purchase","190480840","04/07/2018","Fleet Services","Fleet Management","R4000"
"Wolverhampton City Council","http://opendatacommunities.org/id/metropolitan-district-council/wolverhampton","704545","Interwaste Municipal Limitedc/O Fleet Ca","27443","187.96","Equipment - Purchase","190480840","04/07/2018","Fleet Services","Fleet Management","R4000"
"Wolverhampton City Council","http://opendatacommunities.org/id/metropolitan-district-council/wolverhampton","704545","Interwaste Municipal Limitedc/O Fleet Ca","27870","235.00","Equipment - Purchase","190490212","27/07/2018","Fleet Services","Fleet Management","R4000"
"Wolverhampton City Council","http://opendatacommunities.org/id/metropolitan-district-council/wolverhampton","704584","J Ashcroft","003","1,000.00","Services - Professional Fees","130223866","27/07/2018","Visitor Economy","Education And Access","R4400"
"Wolverhampton City Council","http://opendatacommunities.org/id/metropolitan-district-council/wolverhampton","704593","J Edwards Glass","0000102375","135.00","R&M - Departmental planned (external)","130220765","04/07/2018","Facilities Management","Caretakers Community Centre","R2001"
"Wolverhampton City Council","http://opendatacommunities.org/id/metropolitan-district-council/wolverhampton","704593","J Edwards Glass","0000102410","147.34","R&M - Departmental planned (external)","130220900","06/07/2018","Maintenance Programme","Centralised R&M","R2001"
"Wolverhampton City Council","http://opendatacommunities.org/id/metropolitan-district-council/wolverhampton","704593","J Edwards Glass","0000102419","55.00","R&M - Departmental planned (external)","130222449","18/07/2018","Maintenance Programme","Centralised R&M","R2001"
"Wolverhampton City Council","http://opendatacommunities.org/id/metropolitan-district-council/wolverhampton","704593","J Edwards Glass","0000102360","142.00","R&M - Departmental planned (external)","130220074","04/07/2018","Maintenance Programme","Centralised R&M","R2001"
"Wolverhampton City Council","http://opendatacommunities.org/id/metropolitan-district-council/wolverhampton","704593","J Edwards Glass","0000102411","253.00","R&M - Departmental planned (external)","130220901","13/07/2018","Bereavement Services","Cemeteries","R2001"
"Wolverhampton City Council","http://opendatacommunities.org/id/metropolitan-district-council/wolverhampton","704593","J Edwards Glass","0000102418","43.00","R&M - Departmental planned (external)","130222448","18/07/2018","Maintenance Programme","Centralised R&M","R2001"
"Wolverhampton City Council","http://opendatacommunities.org/id/metropolitan-district-council/wolverhampton","704605","J Lacey Steeplejacks Contractors Limited","20081","97.50","Fixtures and Fittings - Purchases","130220902","06/07/2018","Maintenance Programme","Centralised R&M","R2500"
"Wolverhampton City Council","http://opendatacommunities.org/id/metropolitan-district-council/wolverhampton","704617","J S Bassi T/A Penn Radio Cars","229","700.00","Client Transport","130223032","23/07/2018","Special Educational Needs","Home to College Transport","R3042"
"Wolverhampton City Council","http://opendatacommunities.org/id/metropolitan-district-council/wolverhampton","704617","J S Bassi T/A Penn Radio Cars","228","630.00","Client Transport","130223031","23/07/2018","Special Educational Needs","Special - Transport","R3042"
"Wolverhampton City Council","http://opendatacommunities.org/id/metropolitan-district-council/wolverhampton","704617","J S Bassi T/A Penn Radio Cars","230","1,580.00","Client Transport","130223033","23/07/2018","Special Educational Needs","Special - Transport","R3042"
"Wolverhampton City Council","http://opendatacommunities.org/id/metropolitan-district-council/wolverhampton","704617","J S Bassi T/A Penn Radio Cars","226","600.00","Client Transport","130223029","23/07/2018","Special Educational Needs","Special - Transport","R3042"
"Wolverhampton City Council","http://opendatacommunities.org/id/metropolitan-district-council/wolverhampton","704617","J S Bassi T/A Penn Radio Cars","225","1,902.00","Client Transport","130223028","23/07/2018","Special Educational Needs","Special - Transport","R3042"
"Wolverhampton City Council","http://opendatacommunities.org/id/metropolitan-district-council/wolverhampton","704617","J S Bassi T/A Penn Radio Cars","227","816.00","Client Transport","130223030","23/07/2018","Special Educational Needs","Special - Transport","R3042"
"Wolverhampton City Council","http://opendatacommunities.org/id/metropolitan-district-council/wolverhampton","704620","J W Green Swimming Pools Limited","21923","225.70","Water Charges","130221590","06/07/2018","Schools","The King�s Church of England School","R2400"
"Wolverhampton City Council","http://opendatacommunities.org/id/metropolitan-district-council/wolverhampton","704620","J W Green Swimming Pools Limited","21903","276.05","Water Charges","130221589","06/07/2018","Schools","The King�s Church of England School","R2400"
"Wolverhampton City Council","http://opendatacommunities.org/id/metropolitan-district-council/wolverhampton","704631","J.Murphy & Sons Limited","IN336568","15,020.79","Construction and Conversion","130220379","18/07/2018","-","GF - Disposals Programme (Non-Strategic)","C1100"
"Wolverhampton City Council","http://opendatacommunities.org/id/metropolitan-district-council/wolverhampton","704639","Jack Moody Landscape & Civil Eng Ltd","IN4756","3,000.00","Services - Professional Fees","130213822","18/07/2018","Environmental Maintenance","Parks / Open Spaces - Repairs & Maintenance","R4400"
"Wolverhampton City Council","http://opendatacommunities.org/id/metropolitan-district-council/wolverhampton","704640","Jackdaw (Tools) Limited","JV413625","9.30","Equipment - Purchase","190488114","25/07/2018","Fleet Services","Fleet Management","R4000"
"Wolverhampton City Council","http://opendatacommunities.org/id/metropolitan-district-council/wolverhampton","704640","Jackdaw (Tools) Limited","JV413774","12.38","Equipment - Purchase","190488115","25/07/2018","Fleet Services","Fleet Management","R4000"
"Wolverhampton City Council","http://opendatacommunities.org/id/metropolitan-district-council/wolverhampton","704640","Jackdaw (Tools) Limited","JV414799","6.15","Equipment - Purchase","190490267","27/07/2018","Fleet Services","Fleet Management","R4000"
"Wolverhampton City Council","http://opendatacommunities.org/id/metropolitan-district-council/wolverhampton","704640","Jackdaw (Tools) Limited","JV412957","5.09","Equipment - Purchase","190488112","25/07/2018","Fleet Services","Fleet Management","R4000"
"Wolverhampton City Council","http://opendatacommunities.org/id/metropolitan-district-council/wolverhampton","704640","Jackdaw (Tools) Limited","JV413116","10.16","Equipment - Purchase","190488113","25/07/2018","Fleet Services","Fleet Management","R4000"
"Wolverhampton City Council","http://opendatacommunities.org/id/metropolitan-district-council/wolverhampton","704649","Jacobs U.K.Limited","B1019000-223-052","21,000.78","Services - Professional Fees","130220807","25/07/2018","Maintenance Programme","Centralised R&M","R4400"
"Wolverhampton City Council","http://opendatacommunities.org/id/metropolitan-district-council/wolverhampton","704649","Jacobs U.K.Limited","B1019000-223-049","41,652.34","Services - Professional Fees","130220908","25/07/2018","Maintenance Programme","Centralised R&M","R4400"
"Wolverhampton City Council","http://opendatacommunities.org/id/metropolitan-district-council/wolverhampton","704649","Jacobs U.K.Limited","B1019000-223-051","6,689.93","Services - Professional Fees","130220910","25/07/2018","Corporate Asset Management","Statutory Surveys","R4400"
"Wolverhampton City Council","http://opendatacommunities.org/id/metropolitan-district-council/wolverhampton","704649","Jacobs U.K.Limited","B1019000-223-017","845.88","Services - Professional Fees","130220783","25/07/2018","City Development","Eastern Gateway","R4400"
"Wolverhampton City Council","http://opendatacommunities.org/id/metropolitan-district-council/wolverhampton","704649","Jacobs U.K.Limited","B1019000-223-024","516.98","Services - Professional Fees","130220790","25/07/2018","Corporate Asset Management","Statutory Surveys","R4400"
"Wolverhampton City Council","http://opendatacommunities.org/id/metropolitan-district-council/wolverhampton","704649","Jacobs U.K.Limited","B1019000-223-029","11,124.96","Services - Professional Fees","130220795","25/07/2018","Housing Revenue Account","HRA General","R4400"
"Wolverhampton City Council","http://opendatacommunities.org/id/metropolitan-district-council/wolverhampton","704649","Jacobs U.K.Limited","B1019000-223-010","4,200.00","Services - Professional Fees","130220775","25/07/2018","Estates and Valuations","Disposal Costs","R4400"
"Wolverhampton City Council","http://opendatacommunities.org/id/metropolitan-district-council/wolverhampton","704649","Jacobs U.K.Limited","B1019000-223-042","1,400.00","Construction and Conversion","130222873","25/07/2018","-","South Side","C1100"
"Wolverhampton City Council","http://opendatacommunities.org/id/metropolitan-district-council/wolverhampton","704649","Jacobs U.K.Limited","B1019000-223-038","1,685.73","Construction and Conversion","130220804","25/07/2018","-","Decent Homes - Stock Improvements","C1100"
"Wolverhampton City Council","http://opendatacommunities.org/id/metropolitan-district-council/wolverhampton","704649","Jacobs U.K.Limited","B1019000-223-015","803.65","Services - Professional Fees","130220781","25/07/2018","Estates and Valuations","Other Premises ; Other","R4400"
"Wolverhampton City Council","http://opendatacommunities.org/id/metropolitan-district-council/wolverhampton","704649","Jacobs U.K.Limited","B1019000-223-002","1,171.13","Services - Professional Fees","130220767","25/07/2018","Estates and Valuations","Estates and Valuations Team","R4400"
"Wolverhampton City Council","http://opendatacommunities.org/id/metropolitan-district-council/wolverhampton","704649","Jacobs U.K.Limited","B1019000-223-046","2,128.95","Construction and Conversion","130220905","25/07/2018","-","Primary Expansion Programme","C1100"
"Wolverhampton City Council","http://opendatacommunities.org/id/metropolitan-district-council/wolverhampton","704649","Jacobs U.K.Limited","B1019000-222-010","11,523.71","Construction and Conversion","130217082","04/07/2018","-","Decent Homes - Stock Improvements","C1100"
"Wolverhampton City Council","http://opendatacommunities.org/id/metropolitan-district-council/wolverhampton","704649","Jacobs U.K.Limited","B1019000-222-006","3,239.82","Construction and Conversion","130217078","06/07/2018","-","Heath Town","C1100"
"Wolverhampton City Council","http://opendatacommunities.org/id/metropolitan-district-council/wolverhampton","704649","Jacobs U.K.Limited","B1019000-223-019","1,346.65","Construction and Conversion","130220785","25/07/2018","-","Bilston Urban Village","C1100"
"Wolverhampton City Council","http://opendatacommunities.org/id/metropolitan-district-council/wolverhampton","704649","Jacobs U.K.Limited","B1019000-223-019","336.35","Construction and Conversion","130220785","25/07/2018","-","Bilston Urban Village","C1100"
"Wolverhampton City Council","http://opendatacommunities.org/id/metropolitan-district-council/wolverhampton","704649","Jacobs U.K.Limited","B1019000-223-007","2,085.00","Services - Professional Fees","130220773","25/07/2018","Housing Revenue Account","HRA General","R4400"
"Wolverhampton City Council","http://opendatacommunities.org/id/metropolitan-district-council/wolverhampton","704649","Jacobs U.K.Limited","B1019000-223-034","540.00","Construction and Conversion","130220800","25/07/2018","-","South Side","C1100"
"Wolverhampton City Council","http://opendatacommunities.org/id/metropolitan-district-council/wolverhampton","704649","Jacobs U.K.Limited","B1019000-223-012","682.27","Services - Professional Fees","130220778","25/07/2018","Housing Revenue Account","HRA General","R4400"
"Wolverhampton City Council","http://opendatacommunities.org/id/metropolitan-district-council/wolverhampton","704649","Jacobs U.K.Limited","B1019000-223-013","34,584.07","Services - Professional Fees","130220779","25/07/2018","Estates and Valuations","Estates and Valuations Team","R4400"
"Wolverhampton City Council","http://opendatacommunities.org/id/metropolitan-district-council/wolverhampton","704649","Jacobs U.K.Limited","B1019000-223-020","2,094.96","Services - Professional Fees","130220786","25/07/2018","Corporate Asset Management","Statutory Surveys","R4400"
"Wolverhampton City Council","http://opendatacommunities.org/id/metropolitan-district-council/wolverhampton","704649","Jacobs U.K.Limited","B1019000-223-023","2,600.64","Services - Professional Fees","130220789","25/07/2018","Corporate Asset Management","Statutory Surveys","R4400"
"Wolverhampton City Council","http://opendatacommunities.org/id/metropolitan-district-council/wolverhampton","704649","Jacobs U.K.Limited","B1019000-223-028","1,155.84","Services - Professional Fees","130220794","25/07/2018","Corporate Asset Management","Statutory Surveys","R4400"
"Wolverhampton City Council","http://opendatacommunities.org/id/metropolitan-district-council/wolverhampton","704649","Jacobs U.K.Limited","B1019000-223-027","6,682.20","Services - Professional Fees","130220793","25/07/2018","Corporate Asset Management","Statutory Surveys","R4400"
"Wolverhampton City Council","http://opendatacommunities.org/id/metropolitan-district-council/wolverhampton","704649","Jacobs U.K.Limited","B1019000-223-044","810.64","Services - Professional Fees","130220903","25/07/2018","City Development","Southside","R4400"
"Wolverhampton City Council","http://opendatacommunities.org/id/metropolitan-district-council/wolverhampton","704649","Jacobs U.K.Limited","B1019000-223-009","845.88","Services - Professional Fees","130221791","25/07/2018","Estates and Valuations","Estates and Valuations Team","R4400"
"Wolverhampton City Council","http://opendatacommunities.org/id/metropolitan-district-council/wolverhampton","704649","Jacobs U.K.Limited","B1019000-223-033","124.20","Construction and Conversion","130220799","25/07/2018","-","Civic Centre car Park Repairs - Refurbs","C1100"
"Wolverhampton City Council","http://opendatacommunities.org/id/metropolitan-district-council/wolverhampton","704649","Jacobs U.K.Limited","B1019000-223-045","1,550.03","Services - Professional Fees","130220904","25/07/2018","Housing Revenue Account","HRA General","R4400"
"Wolverhampton City Council","http://opendatacommunities.org/id/metropolitan-district-council/wolverhampton","704649","Jacobs U.K.Limited","B1019000-223-001","1,300.00","Construction and Conversion","130220766","25/07/2018","-","Integrated Transport","C1100"
"Wolverhampton City Council","http://opendatacommunities.org/id/metropolitan-district-council/wolverhampton","704649","Jacobs U.K.Limited","B1019000-223-014","665.93","Services - Professional Fees","130220780","25/07/2018","Housing Revenue Account","HRA General","R4400"
"Wolverhampton City Council","http://opendatacommunities.org/id/metropolitan-district-council/wolverhampton","704649","Jacobs U.K.Limited","B1019000-223-036","288.96","Construction and Conversion","130220802","25/07/2018","-","Decent Homes - Stock Improvements","C1100"
"Wolverhampton City Council","http://opendatacommunities.org/id/metropolitan-district-council/wolverhampton","704649","Jacobs U.K.Limited","B1019000-223-037","866.88","Construction and Conversion","130220803","25/07/2018","-","Decent Homes - Stock Improvements","C1100"
"Wolverhampton City Council","http://opendatacommunities.org/id/metropolitan-district-council/wolverhampton","704649","Jacobs U.K.Limited","B1019000-223-031","15,197.49","Construction and Conversion","130220797","25/07/2018","-","Decent Homes - Stock Improvements","C1100"
"Wolverhampton City Council","http://opendatacommunities.org/id/metropolitan-district-council/wolverhampton","704649","Jacobs U.K.Limited","B1019000-223-030","34,154.47","Construction and Conversion","130220796","25/07/2018","-","Decent Homes - Stock Improvements","C1100"
"Wolverhampton City Council","http://opendatacommunities.org/id/metropolitan-district-council/wolverhampton","704649","Jacobs U.K.Limited","B1019000-223-016","557.13","Services - Professional Fees","130220782","25/07/2018","Estates and Valuations","Disposal Costs","R4400"
"Wolverhampton City Council","http://opendatacommunities.org/id/metropolitan-district-council/wolverhampton","704649","Jacobs U.K.Limited","B1019000-223-011","1,779.63","Services - Professional Fees","130220777","25/07/2018","Housing Revenue Account","HRA General","R4400"
"Wolverhampton City Council","http://opendatacommunities.org/id/metropolitan-district-council/wolverhampton","704649","Jacobs U.K.Limited","B1019000-223-026","2,889.60","Services - Professional Fees","130220792","25/07/2018","Corporate Asset Management","Statutory Surveys","R4400"
"Wolverhampton City Council","http://opendatacommunities.org/id/metropolitan-district-council/wolverhampton","704649","Jacobs U.K.Limited","B1019000-223-008","916.37","Services - Professional Fees","130220774","25/07/2018","Estates and Valuations","Estates and Valuations Team","R4400"
"Wolverhampton City Council","http://opendatacommunities.org/id/metropolitan-district-council/wolverhampton","704649","Jacobs U.K.Limited","B1019000-223-003","1,500.30","Services - Professional Fees","130220768","25/07/2018","Estates and Valuations","Estates and Valuations Team","R4400"
"Wolverhampton City Council","http://opendatacommunities.org/id/metropolitan-district-council/wolverhampton","704649","Jacobs U.K.Limited","B1019000-223-050","9,395.73","Services - Professional Fees","130220909","25/07/2018","Corporate Asset Management","Statutory Surveys","R4400"
"Wolverhampton City Council","http://opendatacommunities.org/id/metropolitan-district-council/wolverhampton","704649","Jacobs U.K.Limited","B1019000-222-009","288.96","Construction and Conversion","130217081","04/07/2018","-","Decent Homes - Stock Improvements","C1100"
"Wolverhampton City Council","http://opendatacommunities.org/id/metropolitan-district-council/wolverhampton","704649","Jacobs U.K.Limited","B1019000-223-035","14,286.14","Construction and Conversion","130220801","25/07/2018","-","Decent Homes - Stock Improvements","C1100"
"Wolverhampton City Council","http://opendatacommunities.org/id/metropolitan-district-council/wolverhampton","704649","Jacobs U.K.Limited","B1019000-223-004","2,200.00","Construction and Conversion","130220769","25/07/2018","-","Black Country Growth Deal � Cultural Programme","C1100"
"Wolverhampton City Council","http://opendatacommunities.org/id/metropolitan-district-council/wolverhampton","704649","Jacobs U.K.Limited","B1019000-223-018","20,550.01","Services - Professional Fees","130220784","25/07/2018","Planning","Planning","R4400"
"Wolverhampton City Council","http://opendatacommunities.org/id/metropolitan-district-council/wolverhampton","704649","Jacobs U.K.Limited","B1019000-223-021","1,417.62","Services - Professional Fees","130220787","25/07/2018","Corporate Asset Management","Statutory Surveys","R4400"
"Wolverhampton City Council","http://opendatacommunities.org/id/metropolitan-district-council/wolverhampton","704649","Jacobs U.K.Limited","B1019000-223-022","288.86","Services - Professional Fees","130220788","25/07/2018","Corporate Asset Management","Statutory Surveys","R4400"
"Wolverhampton City Council","http://opendatacommunities.org/id/metropolitan-district-council/wolverhampton","704649","Jacobs U.K.Limited","B1019000-223-025","4,623.36","Services - Professional Fees","130220791","25/07/2018","Corporate Asset Management","Statutory Surveys","R4400"
"Wolverhampton City Council","http://opendatacommunities.org/id/metropolitan-district-council/wolverhampton","704649","Jacobs U.K.Limited","B1019000-223-032","87.80","Construction and Conversion","130220798","25/07/2018","-","Future Spaces","C1100"
"Wolverhampton City Council","http://opendatacommunities.org/id/metropolitan-district-council/wolverhampton","704649","Jacobs U.K.Limited","B1019000-223-040","433.44","Construction and Conversion","130220806","25/07/2018","-","Decent Homes - Stock Improvements","C1100"
"Wolverhampton City Council","http://opendatacommunities.org/id/metropolitan-district-council/wolverhampton","704649","Jacobs U.K.Limited","B1019000-223-048","2,943.35","Construction and Conversion","130220907","25/07/2018","-","Primary Expansion Programme","C1100"
"Wolverhampton City Council","http://opendatacommunities.org/id/metropolitan-district-council/wolverhampton","704649","Jacobs U.K.Limited","B1019000-223-043","4,134.55","Construction and Conversion","130222874","25/07/2018","-","Future Spaces","C1100"
"Wolverhampton City Council","http://opendatacommunities.org/id/metropolitan-district-council/wolverhampton","704649","Jacobs U.K.Limited","B1019000-223-041","967.59","Construction and Conversion","130222872","25/07/2018","-","Civic Centre car Park Repairs - Refurbs","C1100"
"Wolverhampton City Council","http://opendatacommunities.org/id/metropolitan-district-council/wolverhampton","704649","Jacobs U.K.Limited","B1019000-223-006","469.56","Construction and Conversion","130220772","25/07/2018","-","Black Country Growth Deal � Cultural Programme","C1100"
"Wolverhampton City Council","http://opendatacommunities.org/id/metropolitan-district-council/wolverhampton","704649","Jacobs U.K.Limited","B1019000-222-007","7,947.42","Construction and Conversion","130217079","04/07/2018","-","Decent Homes - Stock Improvements","C1100"
"Wolverhampton City Council","http://opendatacommunities.org/id/metropolitan-district-council/wolverhampton","704657","James Lister & Sons Limited","0100/02821755","6.75","Equipment - Purchase","130220916","04/07/2018","Adult Education","Creative Studies Delivery Area","R4000"
"Wolverhampton City Council","http://opendatacommunities.org/id/metropolitan-district-council/wolverhampton","704657","James Lister & Sons Limited","0100/02823040","92.80","Materials","130221306","25/07/2018","Street Lighting","Signs Illuminated","R4007"
"Wolverhampton City Council","http://opendatacommunities.org/id/metropolitan-district-council/wolverhampton","704657","James Lister & Sons Limited","0100/02823042","50.97","Materials","130221308","06/07/2018","Street Lighting","Signs Illuminated","R4007"
"Wolverhampton City Council","http://opendatacommunities.org/id/metropolitan-district-council/wolverhampton","704657","James Lister & Sons Limited","0100/02823035","136.40","Protective Clothing","130221301","06/07/2018","Highways Maintenance","Patching","R4200"
"Wolverhampton City Council","http://opendatacommunities.org/id/metropolitan-district-council/wolverhampton","704657","James Lister & Sons Limited","240/02822639","81.27","Equipment - Purchase","190483164","11/07/2018","Fleet Services","Fleet Management","R4000"
"Wolverhampton City Council","http://opendatacommunities.org/id/metropolitan-district-council/wolverhampton","704657","James Lister & Sons Limited","240/02821089","468.00","Equipment - Purchase","190483162","11/07/2018","Fleet Services","Fleet Management","R4000"
"Wolverhampton City Council","http://opendatacommunities.org/id/metropolitan-district-council/wolverhampton","704657","James Lister & Sons Limited","0100/02813582","41.60","Protective Clothing","130218262","27/07/2018","Older People Provider Services","Bradley Lodge Resource Centre","R4200"
"Wolverhampton City Council","http://opendatacommunities.org/id/metropolitan-district-council/wolverhampton","704657","James Lister & Sons Limited","0100/02815873","93.90","Protective Clothing","130218900","27/07/2018","Older People Provider Services","Bradley Lodge Resource Centre","R4200"
"Wolverhampton City Council","http://opendatacommunities.org/id/metropolitan-district-council/wolverhampton","704657","James Lister & Sons Limited","0100/02823034","30.90","Protective Clothing","130221300","11/07/2018","Environmental Maintenance","Ground Maintenance East","R4200"
"Wolverhampton City Council","http://opendatacommunities.org/id/metropolitan-district-council/wolverhampton","704657","James Lister & Sons Limited","0100/02823033","35.00","Protective Clothing","130221299","11/07/2018","Facilities Management","Civic Centre","R4200"
"Wolverhampton City Council","http://opendatacommunities.org/id/metropolitan-district-council/wolverhampton","704657","James Lister & Sons Limited","240/02822642","39.20","Equipment - Purchase","190486263","23/07/2018","Fleet Services","Fleet Management","R4000"
"Wolverhampton City Council","http://opendatacommunities.org/id/metropolitan-district-council/wolverhampton","704657","James Lister & Sons Limited","240/02812466","283.36","Equipment - Purchase","190486259","23/07/2018","Fleet Services","Fleet Management","R4000"
"Wolverhampton City Council","http://opendatacommunities.org/id/metropolitan-district-council/wolverhampton","704657","James Lister & Sons Limited","0100/02821750","5.20","Protective Clothing","130220911","23/07/2018","Special Educational Needs","Special - Transport","R4200"
"Wolverhampton City Council","http://opendatacommunities.org/id/metropolitan-district-council/wolverhampton","704657","James Lister & Sons Limited","0100/02826698","68.00","Equipment - Purchase","130222640","23/07/2018","Youth Offending","Youth Offending Team","R4000"
"Wolverhampton City Council","http://opendatacommunities.org/id/metropolitan-district-council/wolverhampton","704657","James Lister & Sons Limited","0100/02819571","127.49","Protective Clothing","130220087","18/07/2018","Catering","Education Catering - General Overheads","R4200"
"Wolverhampton City Council","http://opendatacommunities.org/id/metropolitan-district-council/wolverhampton","704657","James Lister & Sons Limited","0100/02821757","78.95","Protective Clothing","130220918","18/07/2018","Transportation","Passenger Transport - General","R4200"
"Wolverhampton City Council","http://opendatacommunities.org/id/metropolitan-district-council/wolverhampton","704657","James Lister & Sons Limited","0100/02821756","39.00","Protective Clothing","130220917","04/07/2018","Transportation","Passenger Transport - General","R4200"
"Wolverhampton City Council","http://opendatacommunities.org/id/metropolitan-district-council/wolverhampton","704657","James Lister & Sons Limited","0100/02821753","76.59","Protective Clothing","130220914","04/07/2018","Capital Programme","Capital Programme Team","R4200"
"Wolverhampton City Council","http://opendatacommunities.org/id/metropolitan-district-council/wolverhampton","704657","James Lister & Sons Limited","240/02821085","83.18","Equipment - Purchase","190488083","25/07/2018","Fleet Services","Fleet Management","R4000"
"Wolverhampton City Council","http://opendatacommunities.org/id/metropolitan-district-council/wolverhampton","704657","James Lister & Sons Limited","240/02804525","100.00","Equipment - Purchase","190490211","27/07/2018","Fleet Services","Fleet Management","R4000"
"Wolverhampton City Council","http://opendatacommunities.org/id/metropolitan-district-council/wolverhampton","704657","James Lister & Sons Limited","240/02804525","105.50","Equipment - Purchase","190490211","27/07/2018","Fleet Services","Fleet Management","R4000"
"Wolverhampton City Council","http://opendatacommunities.org/id/metropolitan-district-council/wolverhampton","704657","James Lister & Sons Limited","240/02804525","20.84","Equipment - Purchase","190490211","27/07/2018","Fleet Services","Fleet Management","R4000"
"Wolverhampton City Council","http://opendatacommunities.org/id/metropolitan-district-council/wolverhampton","704657","James Lister & Sons Limited","240/02804525","186.00","Equipment - Purchase","190490211","27/07/2018","Fleet Services","Fleet Management","R4000"
"Wolverhampton City Council","http://opendatacommunities.org/id/metropolitan-district-council/wolverhampton","704657","James Lister & Sons Limited","0100/02823037","45.28","Protective Clothing","130221303","06/07/2018","Catering","Education Catering - General Overheads","R4200"
"Wolverhampton City Council","http://opendatacommunities.org/id/metropolitan-district-council/wolverhampton","704657","James Lister & Sons Limited","240/02818672","315.00","Equipment - Purchase","190486260","23/07/2018","Fleet Services","Fleet Management","R4000"
"Wolverhampton City Council","http://opendatacommunities.org/id/metropolitan-district-council/wolverhampton","704657","James Lister & Sons Limited","0100/02821752","301.05","Protective Clothing","130220913","06/07/2018","Housing","Wholly Owned Company - Operations","R4200"
"Wolverhampton City Council","http://opendatacommunities.org/id/metropolitan-district-council/wolverhampton","704657","James Lister & Sons Limited","240/02818674","30.00","Equipment - Purchase","190483159","11/07/2018","Fleet Services","Fleet Management","R4000"
"Wolverhampton City Council","http://opendatacommunities.org/id/metropolitan-district-council/wolverhampton","704657","James Lister & Sons Limited","240/02821090","67.93","Equipment - Purchase","190483163","11/07/2018","Fleet Services","Fleet Management","R4000"
"Wolverhampton City Council","http://opendatacommunities.org/id/metropolitan-district-council/wolverhampton","704657","James Lister & Sons Limited","0100/02826702","18.85","Protective Clothing","130222644","23/07/2018","Bereavement Services","Cemeteries","R4200"
"Wolverhampton City Council","http://opendatacommunities.org/id/metropolitan-district-council/wolverhampton","704657","James Lister & Sons Limited","0100/02826700","158.48","Protective Clothing","130222642","23/07/2018","Catering","Education Catering - General Overheads","R4200"
"Wolverhampton City Council","http://opendatacommunities.org/id/metropolitan-district-council/wolverhampton","704657","James Lister & Sons Limited","0100/02815886","37.44","Protective Clothing","130218913","18/07/2018","Transportation","Passenger Transport - General","R4200"
"Wolverhampton City Council","http://opendatacommunities.org/id/metropolitan-district-council/wolverhampton","704657","James Lister & Sons Limited","0100/02824918","135.87","Equipment - R & M","130222146","18/07/2018","Visitor Economy","The Little Civic","R4003"
"Wolverhampton City Council","http://opendatacommunities.org/id/metropolitan-district-council/wolverhampton","704657","James Lister & Sons Limited","0100/02821758","25.53","Protective Clothing","130220919","04/07/2018","Capital Programme","Capital Programme Team","R4200"
"Wolverhampton City Council","http://opendatacommunities.org/id/metropolitan-district-council/wolverhampton","704657","James Lister & Sons Limited","0100/02824916","23.20","Materials","130222144","25/07/2018","Street Lighting","Signs Illuminated","R4007"
"Wolverhampton City Council","http://opendatacommunities.org/id/metropolitan-district-council/wolverhampton","704657","James Lister & Sons Limited","0100/02823039","360.18","Protective Clothing","130221305","06/07/2018","Licensing","Licensing - Private Hire Vehicles","R4200"
"Wolverhampton City Council","http://opendatacommunities.org/id/metropolitan-district-council/wolverhampton","704657","James Lister & Sons Limited","0100/02823032","11.40","Protective Clothing","130221298","06/07/2018","Facilities Management","Civic Centre","R4200"
"Wolverhampton City Council","http://opendatacommunities.org/id/metropolitan-district-council/wolverhampton","704657","James Lister & Sons Limited","240/02821088","291.05","Equipment - Purchase","190486262","23/07/2018","Fleet Services","Fleet Management","R4000"
"Wolverhampton City Council","http://opendatacommunities.org/id/metropolitan-district-council/wolverhampton","704657","James Lister & Sons Limited","240/02821087","221.32","Equipment - Purchase","190483161","11/07/2018","Fleet Services","Fleet Management","R4000"
"Wolverhampton City Council","http://opendatacommunities.org/id/metropolitan-district-council/wolverhampton","704657","James Lister & Sons Limited","240/02822641","674.56","Equipment - Purchase","190483165","11/07/2018","Fleet Services","Fleet Management","R4000"
"Wolverhampton City Council","http://opendatacommunities.org/id/metropolitan-district-council/wolverhampton","704657","James Lister & Sons Limited","0100/02813570","27.40","Protective Clothing","130218257","11/07/2018","Bereavement Services","Cemeteries","R4200"
"Wolverhampton City Council","http://opendatacommunities.org/id/metropolitan-district-council/wolverhampton","704657","James Lister & Sons Limited","0100/02813578","100.65","Protective Clothing","130218258","11/07/2018","Bereavement Services","Cemeteries","R4200"
"Wolverhampton City Council","http://opendatacommunities.org/id/metropolitan-district-council/wolverhampton","704657","James Lister & Sons Limited","0100/02826704","1,119.95","Protective Clothing","130222646","23/07/2018","Public Service Reform","Register Office","R4200"
"Wolverhampton City Council","http://opendatacommunities.org/id/metropolitan-district-council/wolverhampton","704657","James Lister & Sons Limited","0100/02826697","-6.80","Protective Clothing","130222639","23/07/2018","Catering","Education Catering - General Overheads","R4200"
"Wolverhampton City Council","http://opendatacommunities.org/id/metropolitan-district-council/wolverhampton","704657","James Lister & Sons Limited","0100/02824919","60.00","Protective Clothing","130222001","18/07/2018","Bereavement Services","Bereavement services - Grounds maintenance","R4200"
"Wolverhampton City Council","http://opendatacommunities.org/id/metropolitan-district-council/wolverhampton","704657","James Lister & Sons Limited","0100/02824915","421.25","Protective Clothing","130222143","18/07/2018","Catering","Education Catering - General Overheads","R4200"
"Wolverhampton City Council","http://opendatacommunities.org/id/metropolitan-district-council/wolverhampton","704657","James Lister & Sons Limited","0100/02821754","307.50","Protective Clothing","130220915","04/07/2018","Licensing","Licensing - Private Hire Vehicles","R4200"
"Wolverhampton City Council","http://opendatacommunities.org/id/metropolitan-district-council/wolverhampton","704657","James Lister & Sons Limited","0100/02826706","45.00","Protective Clothing","130222648","25/07/2018","Bereavement Services","Bereavement services - Grounds maintenance","R4200"
"Wolverhampton City Council","http://opendatacommunities.org/id/metropolitan-district-council/wolverhampton","704657","James Lister & Sons Limited","0100/02821751","6.80","Protective Clothing","130220912","23/07/2018","Catering","Education Catering - General Overheads","R4200"
"Wolverhampton City Council","http://opendatacommunities.org/id/metropolitan-district-council/wolverhampton","704657","James Lister & Sons Limited","0100/02823038","22.64","Protective Clothing","130221304","06/07/2018","Cleaning","Cleaning of Buildings - General","R4200"
"Wolverhampton City Council","http://opendatacommunities.org/id/metropolitan-district-council/wolverhampton","704657","James Lister & Sons Limited","0100/02823041","34.02","Protective Clothing","130221307","11/07/2018","Bereavement Services","Cemeteries","R4200"
"Wolverhampton City Council","http://opendatacommunities.org/id/metropolitan-district-council/wolverhampton","704657","James Lister & Sons Limited","240/02821086","89.40","Equipment - Purchase","190483160","11/07/2018","Fleet Services","Fleet Management","R4000"
"Wolverhampton City Council","http://opendatacommunities.org/id/metropolitan-district-council/wolverhampton","704657","James Lister & Sons Limited","240/02818673","53.20","Equipment - Purchase","190483158","11/07/2018","Fleet Services","Fleet Management","R4000"
"Wolverhampton City Council","http://opendatacommunities.org/id/metropolitan-district-council/wolverhampton","704657","James Lister & Sons Limited","0100/02823036","106.14","Protective Clothing","130221302","11/07/2018","Maintenance Programme","Building Maintenance","R4200"
"Wolverhampton City Council","http://opendatacommunities.org/id/metropolitan-district-council/wolverhampton","704657","James Lister & Sons Limited","240/02821084","67.81","Equipment - Purchase","190486261","23/07/2018","Fleet Services","Fleet Management","R4000"
"Wolverhampton City Council","http://opendatacommunities.org/id/metropolitan-district-council/wolverhampton","704657","James Lister & Sons Limited","0100/02826701","272.08","Protective Clothing","130222643","23/07/2018","Catering","Education Catering - General Overheads","R4200"
"Wolverhampton City Council","http://opendatacommunities.org/id/metropolitan-district-council/wolverhampton","704657","James Lister & Sons Limited","0100/02826703","39.12","Protective Clothing","130222645","23/07/2018","ICTS","Strategic ICTS (ICT Service Budget)","R4200"
"Wolverhampton City Council","http://opendatacommunities.org/id/metropolitan-district-council/wolverhampton","704657","James Lister & Sons Limited","0100/02824914","98.50","Protective Clothing","130222142","18/07/2018","Cleaning","Cleaning of Buildings - General","R4200"
"Wolverhampton City Council","http://opendatacommunities.org/id/metropolitan-district-council/wolverhampton","704657","James Lister & Sons Limited","0100/02824917","340.00","Equipment - Purchase","130222145","18/07/2018","Youth Offending","Youth Offending Team","R4000"
"Wolverhampton City Council","http://opendatacommunities.org/id/metropolitan-district-council/wolverhampton","704675","JCDECAUX UK Limited","SF/I094612","385.00","Marketing \ Non-staff advertising","130221794","25/07/2018","Corporate Communications","Communications & Marketing - General","R4317"
"Wolverhampton City Council","http://opendatacommunities.org/id/metropolitan-district-council/wolverhampton","704675","JCDECAUX UK Limited","SF/I083241","385.00","Marketing \ Non-staff advertising","130222003","11/07/2018","Corporate Communications","Communications & Marketing - General","R4317"
"Wolverhampton City Council","http://opendatacommunities.org/id/metropolitan-district-council/wolverhampton","704675","JCDECAUX UK Limited","SF/I094474","385.00","Marketing \ Non-staff advertising","130221793","18/07/2018","Adult Education","Service Wide","R4317"
"Wolverhampton City Council","http://opendatacommunities.org/id/metropolitan-district-council/wolverhampton","704675","JCDECAUX UK Limited","SF/I090468","385.00","Marketing \ Non-staff advertising","130222004","11/07/2018","Corporate Communications","Communications & Marketing - General","R4317"
"Wolverhampton City Council","http://opendatacommunities.org/id/metropolitan-district-council/wolverhampton","704703","Jim�S Transfleet","290818A","1,597.52","Client Transport","130220921","06/07/2018","Special Educational Needs","Special - Transport","R3042"
"Wolverhampton City Council","http://opendatacommunities.org/id/metropolitan-district-council/wolverhampton","704703","Jim�S Transfleet","290618","1,679.79","Client Transport","130220920","06/07/2018","Special Educational Needs","Special - Transport","R3042"
"Wolverhampton City Council","http://opendatacommunities.org/id/metropolitan-district-council/wolverhampton","704706","JLA Limited","RB/J042934","1,939.39","Equipment - Purchase","130220253","23/07/2018","Housing Revenue Account","Hostels / Outreach","R4000"
"Wolverhampton City Council","http://opendatacommunities.org/id/metropolitan-district-council/wolverhampton","704718","Job Change 2007","SO0646","25,000.00","TPP - Social Care Support Services","130217467","13/07/2018","Skills","Job Change","R5501"
"Wolverhampton City Council","http://opendatacommunities.org/id/metropolitan-district-council/wolverhampton","704718","Job Change 2007","SO0645","6,497.58","TPP - Social Care Support Services","130217466","13/07/2018","Skills","Job Change","R5501"
"Wolverhampton City Council","http://opendatacommunities.org/id/metropolitan-district-council/wolverhampton","704722","Johal Dairies Limited","1143919","19.22","Provisions (Not for resale)","130221333","18/07/2018","Visitor Economy","Art Gallery Tea Room","R4101"
"Wolverhampton City Council","http://opendatacommunities.org/id/metropolitan-district-council/wolverhampton","704722","Johal Dairies Limited","1143925","34.71","Provisions (Not for resale)","130221337","18/07/2018","Learning Disability Provider","Duke Street Bungalows","R4101"
"Wolverhampton City Council","http://opendatacommunities.org/id/metropolitan-district-council/wolverhampton","704722","Johal Dairies Limited","1148030","25.57","Provisions (Not for resale)","130221344","25/07/2018","Learning Disability Provider","Duke Street Bungalows","R4101"
"Wolverhampton City Council","http://opendatacommunities.org/id/metropolitan-district-council/wolverhampton","704722","Johal Dairies Limited","1148027","128.42","Provisions (Not for resale)","130221342","25/07/2018","Visitor Economy","Bantock - Tea Rooms","R4101"
"Wolverhampton City Council","http://opendatacommunities.org/id/metropolitan-district-council/wolverhampton","704722","Johal Dairies Limited","1135840","17.63","Provisions (Resale)","130221322","25/07/2018","Older People Provider Services","Blakenhall Resource Centre","R4102"
"Wolverhampton City Council","http://opendatacommunities.org/id/metropolitan-district-council/wolverhampton","704722","Johal Dairies Limited","1132226","20.28","Provisions (Not for resale)","130221312","06/07/2018","Learning Disability Provider","Duke Street Bungalows","R4101"
"Wolverhampton City Council","http://opendatacommunities.org/id/metropolitan-district-council/wolverhampton","704722","Johal Dairies Limited","1135784","110.80","Provisions (Not for resale)","130221318","06/07/2018","Visitor Economy","Bantock - Tea Rooms","R4101"
"Wolverhampton City Council","http://opendatacommunities.org/id/metropolitan-district-council/wolverhampton","704722","Johal Dairies Limited","1135782","12.25","Provisions (Not for resale)","130221317","06/07/2018","Visitor Economy","Art Gallery Tea Room","R4101"
"Wolverhampton City Council","http://opendatacommunities.org/id/metropolitan-district-council/wolverhampton","704722","Johal Dairies Limited","5620052018","950.45","Provisions (Resale)","130221795","11/07/2018","Catering","Civic Centre Catering","R4102"
"Wolverhampton City Council","http://opendatacommunities.org/id/metropolitan-district-council/wolverhampton","704722","Johal Dairies Limited","1139823","34.71","Provisions (Not for resale)","130221329","11/07/2018","Learning Disability Provider","Duke Street Bungalows","R4101"
"Wolverhampton City Council","http://opendatacommunities.org/id/metropolitan-district-council/wolverhampton","704722","Johal Dairies Limited","1148029","20.28","Provisions (Not for resale)","130221343","25/07/2018","Learning Disability Provider","Duke Street Bungalows","R4101"
"Wolverhampton City Council","http://opendatacommunities.org/id/metropolitan-district-council/wolverhampton","704722","Johal Dairies Limited","W1/3062018","16,307.82","School Milk","130223559","25/07/2018","Catering","Education Catering - General Overheads","R4104"
"Wolverhampton City Council","http://opendatacommunities.org/id/metropolitan-district-council/wolverhampton","704722","Johal Dairies Limited","6525062018","155.80","Provisions (Not for resale)","130222150","25/07/2018","Leisure Services","WV Active Catering - Central","R4101"
"Wolverhampton City Council","http://opendatacommunities.org/id/metropolitan-district-council/wolverhampton","704722","Johal Dairies Limited","5466062018","232.64","Provisions (Not for resale)","130222148","25/07/2018","Leisure Services","WV Active Catering","R4101"
"Wolverhampton City Council","http://opendatacommunities.org/id/metropolitan-district-council/wolverhampton","704722","Johal Dairies Limited","1139875","7.31","Provisions (Resale)","130221330","25/07/2018","Older People Provider Services","Blakenhall Resource Centre","R4102"
"Wolverhampton City Council","http://opendatacommunities.org/id/metropolitan-district-council/wolverhampton","704722","Johal Dairies Limited","1132224","82.09","Provisions (Not for resale)","130221311","06/07/2018","Visitor Economy","Bantock - Tea Rooms","R4101"
"Wolverhampton City Council","http://opendatacommunities.org/id/metropolitan-district-council/wolverhampton","704722","Johal Dairies Limited","1135786","20.28","Provisions (Not for resale)","130221319","06/07/2018","Learning Disability Provider","Duke Street Bungalows","R4101"
"Wolverhampton City Council","http://opendatacommunities.org/id/metropolitan-district-council/wolverhampton","704722","Johal Dairies Limited","1139819","86.48","Provisions (Not for resale)","130221326","11/07/2018","Visitor Economy","Bantock - Tea Rooms","R4101"
"Wolverhampton City Council","http://opendatacommunities.org/id/metropolitan-district-council/wolverhampton","704722","Johal Dairies Limited","1132229","17.64","Provisions (Resale)","130221315","25/07/2018","Older People Provider Services","Blakenhall Resource Centre","R4102"
"Wolverhampton City Council","http://opendatacommunities.org/id/metropolitan-district-council/wolverhampton","704722","Johal Dairies Limited","1148088","23.68","Provisions (Not for resale)","130221347","25/07/2018","Adult Education","Caf�","R4101"
"Wolverhampton City Council","http://opendatacommunities.org/id/metropolitan-district-council/wolverhampton","704722","Johal Dairies Limited","1148025","25.48","Provisions (Not for resale)","130221341","25/07/2018","Visitor Economy","Art Gallery Tea Room","R4101"
"Wolverhampton City Council","http://opendatacommunities.org/id/metropolitan-district-council/wolverhampton","704722","Johal Dairies Limited","1139821","20.28","Provisions (Not for resale)","130221327","11/07/2018","Learning Disability Provider","Duke Street Bungalows","R4101"
"Wolverhampton City Council","http://opendatacommunities.org/id/metropolitan-district-council/wolverhampton","704722","Johal Dairies Limited","1139880","17.56","Provisions (Not for resale)","130221331","11/07/2018","Adult Education","Caf�","R4101"
"Wolverhampton City Council","http://opendatacommunities.org/id/metropolitan-district-council/wolverhampton","704722","Johal Dairies Limited","1132222","20.90","Provisions (Not for resale)","130221310","06/07/2018","Visitor Economy","Art Gallery Tea Room","R4101"
"Wolverhampton City Council","http://opendatacommunities.org/id/metropolitan-district-council/wolverhampton","704722","Johal Dairies Limited","1135788","34.71","Provisions (Not for resale)","130221321","06/07/2018","Learning Disability Provider","Duke Street Bungalows","R4101"
"Wolverhampton City Council","http://opendatacommunities.org/id/metropolitan-district-council/wolverhampton","704722","Johal Dairies Limited","1132227","25.57","Provisions (Not for resale)","130221313","06/07/2018","Learning Disability Provider","Duke Street Bungalows","R4101"
"Wolverhampton City Council","http://opendatacommunities.org/id/metropolitan-district-council/wolverhampton","704722","Johal Dairies Limited","1120860","111.15","Provisions (Not for resale)","130218106","27/07/2018","Older People Provider Services","Bradley Lodge Resource Centre","R4101"
"Wolverhampton City Council","http://opendatacommunities.org/id/metropolitan-district-council/wolverhampton","704722","Johal Dairies Limited","1143924","25.57","Provisions (Not for resale)","130221336","18/07/2018","Learning Disability Provider","Duke Street Bungalows","R4101"
"Wolverhampton City Council","http://opendatacommunities.org/id/metropolitan-district-council/wolverhampton","704722","Johal Dairies Limited","1143923","20.28","Provisions (Not for resale)","130221335","18/07/2018","Learning Disability Provider","Duke Street Bungalows","R4101"
"Wolverhampton City Council","http://opendatacommunities.org/id/metropolitan-district-council/wolverhampton","704722","Johal Dairies Limited","1143977","8.06","Provisions (Resale)","130221338","25/07/2018","Older People Provider Services","Blakenhall Resource Centre","R4102"
"Wolverhampton City Council","http://opendatacommunities.org/id/metropolitan-district-council/wolverhampton","704722","Johal Dairies Limited","1148083","21.43","Provisions (Resale)","130221346","25/07/2018","Older People Provider Services","Blakenhall Resource Centre","R4102"
"Wolverhampton City Council","http://opendatacommunities.org/id/metropolitan-district-council/wolverhampton","704722","Johal Dairies Limited","1135845","39.75","Provisions (Not for resale)","130221323","04/07/2018","Adult Education","Caf�","R4101"
"Wolverhampton City Council","http://opendatacommunities.org/id/metropolitan-district-council/wolverhampton","704722","Johal Dairies Limited","1148031","34.71","Provisions (Not for resale)","130221345","25/07/2018","Learning Disability Provider","Duke Street Bungalows","R4101"
"Wolverhampton City Council","http://opendatacommunities.org/id/metropolitan-district-council/wolverhampton","704722","Johal Dairies Limited","5935062018","265.81","Provisions (Not for resale)","130222149","25/07/2018","Leisure Services","Bert Williams Leisure Centre Caf�","R4101"
"Wolverhampton City Council","http://opendatacommunities.org/id/metropolitan-district-council/wolverhampton","704722","Johal Dairies Limited","WKIT052018","8,819.78","Provisions (Resale)","130221796","11/07/2018","Catering","Education Catering - General Overheads","R4102"
"Wolverhampton City Council","http://opendatacommunities.org/id/metropolitan-district-council/wolverhampton","704722","Johal Dairies Limited","1139817","11.40","Provisions (Not for resale)","130221325","11/07/2018","Visitor Economy","Art Gallery Tea Room","R4101"
"Wolverhampton City Council","http://opendatacommunities.org/id/metropolitan-district-council/wolverhampton","704722","Johal Dairies Limited","1139822","25.57","Provisions (Not for resale)","130221328","11/07/2018","Learning Disability Provider","Duke Street Bungalows","R4101"
"Wolverhampton City Council","http://opendatacommunities.org/id/metropolitan-district-council/wolverhampton","704722","Johal Dairies Limited","1125053","106.85","Provisions (Not for resale)","130218114","27/07/2018","Older People Provider Services","Bradley Lodge Resource Centre","R4101"
"Wolverhampton City Council","http://opendatacommunities.org/id/metropolitan-district-council/wolverhampton","704722","Johal Dairies Limited","1132228","34.71","Provisions (Not for resale)","130221314","06/07/2018","Learning Disability Provider","Duke Street Bungalows","R4101"
"Wolverhampton City Council","http://opendatacommunities.org/id/metropolitan-district-council/wolverhampton","704722","Johal Dairies Limited","1135787","25.57","Provisions (Not for resale)","130221320","06/07/2018","Learning Disability Provider","Duke Street Bungalows","R4101"
"Wolverhampton City Council","http://opendatacommunities.org/id/metropolitan-district-council/wolverhampton","704722","Johal Dairies Limited","1143921","113.45","Provisions (Not for resale)","130221334","18/07/2018","Visitor Economy","Bantock - Tea Rooms","R4101"
"Wolverhampton City Council","http://opendatacommunities.org/id/metropolitan-district-council/wolverhampton","704722","Johal Dairies Limited","1143982","33.16","Provisions (Not for resale)","130221339","18/07/2018","Adult Education","Caf�","R4101"
"Wolverhampton City Council","http://opendatacommunities.org/id/metropolitan-district-council/wolverhampton","704748","Johnston Sweepers Limited","61640552","49.15","Equipment - Purchase","190488089","25/07/2018","Fleet Services","Fleet Management","R4000"
"Wolverhampton City Council","http://opendatacommunities.org/id/metropolitan-district-council/wolverhampton","704748","Johnston Sweepers Limited","61640552","14.79","Equipment - Purchase","190488089","25/07/2018","Fleet Services","Fleet Management","R4000"
"Wolverhampton City Council","http://opendatacommunities.org/id/metropolitan-district-council/wolverhampton","704748","Johnston Sweepers Limited","61640552","288.13","Equipment - Purchase","190488089","25/07/2018","Fleet Services","Fleet Management","R4000"
"Wolverhampton City Council","http://opendatacommunities.org/id/metropolitan-district-council/wolverhampton","704748","Johnston Sweepers Limited","61630331","38.70","Equipment - Purchase","190481467","06/07/2018","Fleet Services","Fleet Management","R4000"
"Wolverhampton City Council","http://opendatacommunities.org/id/metropolitan-district-council/wolverhampton","704748","Johnston Sweepers Limited","61638600","26.39","Equipment - Purchase","190490219","27/07/2018","Fleet Services","Fleet Management","R4000"
"Wolverhampton City Council","http://opendatacommunities.org/id/metropolitan-district-council/wolverhampton","704748","Johnston Sweepers Limited","61633271","111.06","Equipment - Purchase","190483181","11/07/2018","Fleet Services","Fleet Management","R4000"
"Wolverhampton City Council","http://opendatacommunities.org/id/metropolitan-district-council/wolverhampton","704748","Johnston Sweepers Limited","61636231","164.22","Equipment - Purchase","190486268","23/07/2018","Fleet Services","Fleet Management","R4000"
"Wolverhampton City Council","http://opendatacommunities.org/id/metropolitan-district-council/wolverhampton","704748","Johnston Sweepers Limited","61635678","228.19","Equipment - Purchase","190484327","13/07/2018","Fleet Services","Fleet Management","R4000"
"Wolverhampton City Council","http://opendatacommunities.org/id/metropolitan-district-council/wolverhampton","704748","Johnston Sweepers Limited","61636628","389.56","Equipment - Purchase","190488086","25/07/2018","Fleet Services","Fleet Management","R4000"
"Wolverhampton City Council","http://opendatacommunities.org/id/metropolitan-district-council/wolverhampton","704748","Johnston Sweepers Limited","61632566","11.87","Equipment - Purchase","190483180","11/07/2018","Fleet Services","Fleet Management","R4000"
"Wolverhampton City Council","http://opendatacommunities.org/id/metropolitan-district-council/wolverhampton","704748","Johnston Sweepers Limited","61632566","200.97","Equipment - Purchase","190483180","11/07/2018","Fleet Services","Fleet Management","R4000"
"Wolverhampton City Council","http://opendatacommunities.org/id/metropolitan-district-council/wolverhampton","704748","Johnston Sweepers Limited","61637242","180.88","Equipment - Purchase","190490218","27/07/2018","Fleet Services","Fleet Management","R4000"
"Wolverhampton City Council","http://opendatacommunities.org/id/metropolitan-district-council/wolverhampton","704748","Johnston Sweepers Limited","61640258","176.00","Equipment - Purchase","190488088","25/07/2018","Fleet Services","Fleet Management","R4000"
"Wolverhampton City Council","http://opendatacommunities.org/id/metropolitan-district-council/wolverhampton","704748","Johnston Sweepers Limited","65287321","3.00","Services - Professional Fees","190483183","11/07/2018","Fleet Services","Fleet Management","R4400"
"Wolverhampton City Council","http://opendatacommunities.org/id/metropolitan-district-council/wolverhampton","704748","Johnston Sweepers Limited","65287321","142.00","Services - Professional Fees","190483183","11/07/2018","Fleet Services","Fleet Management","R4400"
"Wolverhampton City Council","http://opendatacommunities.org/id/metropolitan-district-council/wolverhampton","704748","Johnston Sweepers Limited","65288012","60.00","Services - Professional Fees","190483184","11/07/2018","Fleet Services","Fleet Management","R4400"
"Wolverhampton City Council","http://opendatacommunities.org/id/metropolitan-district-council/wolverhampton","704748","Johnston Sweepers Limited","65288012","3.00","Services - Professional Fees","190483184","11/07/2018","Fleet Services","Fleet Management","R4400"
"Wolverhampton City Council","http://opendatacommunities.org/id/metropolitan-district-council/wolverhampton","704748","Johnston Sweepers Limited","65288012","142.00","Services - Professional Fees","190483184","11/07/2018","Fleet Services","Fleet Management","R4400"
"Wolverhampton City Council","http://opendatacommunities.org/id/metropolitan-district-council/wolverhampton","704748","Johnston Sweepers Limited","65288720","142.00","Services - Professional Fees","190490222","27/07/2018","Fleet Services","Fleet Management","R4400"
"Wolverhampton City Council","http://opendatacommunities.org/id/metropolitan-district-council/wolverhampton","704748","Johnston Sweepers Limited","65288720","6.00","Services - Professional Fees","190490222","27/07/2018","Fleet Services","Fleet Management","R4400"
"Wolverhampton City Council","http://opendatacommunities.org/id/metropolitan-district-council/wolverhampton","704748","Johnston Sweepers Limited","65288720","120.00","Services - Professional Fees","190490222","27/07/2018","Fleet Services","Fleet Management","R4400"
"Wolverhampton City Council","http://opendatacommunities.org/id/metropolitan-district-council/wolverhampton","704748","Johnston Sweepers Limited","61629247","31.90","Equipment - Purchase","190481465","06/07/2018","Fleet Services","Fleet Management","R4000"
"Wolverhampton City Council","http://opendatacommunities.org/id/metropolitan-district-council/wolverhampton","704748","Johnston Sweepers Limited","61627698","517.46","Equipment - Purchase","190480846","04/07/2018","Fleet Services","Fleet Management","R4000"
"Wolverhampton City Council","http://opendatacommunities.org/id/metropolitan-district-council/wolverhampton","704748","Johnston Sweepers Limited","61631591","15.11","Equipment - Purchase","190484326","13/07/2018","Fleet Services","Fleet Management","R4000"
"Wolverhampton City Council","http://opendatacommunities.org/id/metropolitan-district-council/wolverhampton","704748","Johnston Sweepers Limited","61631591","18.48","Equipment - Purchase","190484326","13/07/2018","Fleet Services","Fleet Management","R4000"
"Wolverhampton City Council","http://opendatacommunities.org/id/metropolitan-district-council/wolverhampton","704748","Johnston Sweepers Limited","61631591","55.20","Equipment - Purchase","190484326","13/07/2018","Fleet Services","Fleet Management","R4000"
"Wolverhampton City Council","http://opendatacommunities.org/id/metropolitan-district-council/wolverhampton","704748","Johnston Sweepers Limited","61640257","10.20","Equipment - Purchase","190488087","25/07/2018","Fleet Services","Fleet Management","R4000"
"Wolverhampton City Council","http://opendatacommunities.org/id/metropolitan-district-council/wolverhampton","704748","Johnston Sweepers Limited","61640257","222.59","Equipment - Purchase","190488087","25/07/2018","Fleet Services","Fleet Management","R4000"
"Wolverhampton City Council","http://opendatacommunities.org/id/metropolitan-district-council/wolverhampton","704748","Johnston Sweepers Limited","61632565","17.27","Equipment - Purchase","190483179","11/07/2018","Fleet Services","Fleet Management","R4000"
